{"text_format":"1","workbook":"xlsx","n_sheets":5,"sheets":["Contents","Cover","1. F-Factor summary","2. Individual fire start info","3. Systems and Audit"],"not_rendered":{"charts":0,"images":2,"macros":1,"external_links":0,"defined_names":5,"comments":0,"pivot_tables":0},"unopened":[],"bounds":{"document_bytes":16777216,"sheet_cells":100000,"rows_first":2000,"rows_last":500,"rows_between":2000,"halvings":0,"cell_chars":16384,"cell_head_chars":4096},"cells_cut":0,"cells_raw":0,"read":"whole","date_system":"1900"}

{"sheet":"Contents","index":0,"n_rows":19,"n_cols":6,"rows_kept":19,"cut":false,"hidden":false,"merged":[[8,2,9,3],[2,1,2,10],[4,1,4,10]]}
[" "]
[]
[null,"Electricity Distribution Network Service Provider\nF-factor Reporting Template"]
[]
[null,"Table of contents"]
[]
[]
[null,null,"Cover sheet",null,null,"2. Fire start report"]
[]
[]
[]
[null,null,"1. F-factor summary",null,null,"3. Systems and Audit"]
[]
[]
[]
[]
[]
[]
[null,null,{"$f":"\"NOTE: This spreadsheet includes IRU targets up to and including FY\"&yearMax","v":"NOTE: This spreadsheet includes IRU targets up to and including FY2024/25"}]

{"sheet":"Cover","index":1,"n_rows":49,"n_cols":7,"rows_kept":49,"cut":false,"hidden":false,"merged":[[26,3,26,8],[28,3,28,8],[26,1,26,2],[31,3,31,5],[14,1,14,8],[16,1,16,8],[17,1,17,8],[21,1,21,8],[19,1,19,8],[10,1,11,8],[13,1,13,8],[48,2,48,6],[42,2,42,3],[42,4,42,7],[46,2,46,6],[47,2,47,6],[38,2,38,3],[38,4,38,7],[41,2,41,3],[41,4,41,7],[37,2,37,3],[37,4,37,7],[32,3,32,8],[30,3,30,8],[15,1,15,8]]}
[]
[]
[]
[]
[]
[]
[]
[null,"Distribution Network Service Provider"]
[null,"Fire start report"]
[]
[null,"This template is to be used by a DNSP to provide a fire start report to the AER in accordance with section 5 of the F-factor Order in Council.  "]
[]
[]
[null,"Colour coding of input sheets:"]
[null,"Dark blue = AER headings"]
[null,"Grey = AER instructions"]
[null,"Yellow = Input cells"]
[null,"Light orange = Automatically-generated cells"]
[]
[null,"Leave coloured cells blank if no information exists - PLEASE DO NOT ENTER TEXT unless specifically requested to do so."]
[null,"The cells and structure of the spreadsheet is locked to prevent inadvertent interference with the automated settings."]
[null,"All dollar amounts are to be unrounded, and in nominal terms."]
[]
[]
[]
[]
[null,"DNSP:",null,"AusNet Services"]
[]
[null,"DNSP - trading name:"]
[]
[null,"DNSP - Australian business number: ",null,"91 064 651 118"]
[]
[null,"Reporting year:",null,"2023/24"]
[]
[]
[]
[]
[null,"Business address","Address",null,"Level 31, 2 Southbank Boulevard"]
[null,null,"Suburb",null,"Southbank"]
[null,null,null,"State","Victoria","Postcode",3006]
[]
[null,"Postal address","Address",null,"Locked Bag 14051 MCMC"]
[null,null,"Suburb",null,"Melbourne"]
[null,null,null,"State","Victoria","Postcode"]
[]
[]
[null,"Contact name/s"]
[null,"Contact phone/s"]
[null,"Contact email address/s"]

{"sheet":"1. F-Factor summary","index":2,"n_rows":14,"n_cols":15,"rows_kept":14,"cut":false,"hidden":false,"merged":[[12,2,12,3],[13,2,13,3],[6,2,6,3],[7,2,7,3],[8,2,8,3],[9,2,9,3],[10,2,10,3],[5,1,5,2],[3,6,3,8],[4,6,4,8],[5,6,5,8],[11,2,11,3]]}
[null,{"$f":"IF(Cover!D27=\"\",\"[DNSP Name]\", Cover!D27)","v":"AusNet Services"},"IRU target:",{"$f":"IF(SUM(K2:O2)=0,\"\",SUM(K2:O2))","v":131.69999999999999},null,null,null,null,null,null,"AusNet Services","CitiPower","Jemena","Powercor","United Energy"]
[null,"F-factor data reporting","IRU amount:",{"$f":"IF(SUM('2. Individual fire start info'!S38:S1876)=0,\"\",SUM('2. Individual fire start info'!S38:S1876))","v":133.45719999999997},null,null,null,null,null,"current",{"$f":"IF(OR($B3=\"[Year]\",$B1=\"[DNSP Name]\",$B1<>K1),\"\",LOOKUP($B3,$J3:$J101,K3:K101))","v":131.69999999999999},{"$f":"IF(OR($B3=\"[Year]\",$B1=\"[DNSP Name]\",$B1<>L1),\"\",LOOKUP($B3,$J3:$J101,L3:L101))","v":""},{"$f":"IF(OR($B3=\"[Year]\",$B1=\"[DNSP Name]\",$B1<>M1),\"\",LOOKUP($B3,$J3:$J101,M3:M101))","v":""},{"$f":"IF(OR($B3=\"[Year]\",$B1=\"[DNSP Name]\",$B1<>N1),\"\",LOOKUP($B3,$J3:$J101,N3:N101))","v":""},{"$f":"IF(OR($B3=\"[Year]\",$B1=\"[DNSP Name]\",$B1<>O1),\"\",LOOKUP($B3,$J3:$J101,O3:O101))","v":""}]
[null,{"$f":"IF(Cover!D33=\"\",\"[Year]\",Cover!D33)","v":"2023/24"},"Revenue adjustment:",{"$f":"IF(OR(D1=\"\",D2=\"\"),\"\",15000*(D1-D2))","v":-26357.999999999749},null,null,null,null,null,"2016/17",247.7,3.4,9.6999999999999993,468,22.3]
[null,null,null,null,null,null,null,null,null,"2017/18",247.7,3.4,9.6999999999999993,468,22.3]
[null,"Table 2: Summary of total fire starts by F factor Order definition",null,null,null,null,null,null,null,"2018/19",247.7,3.4,9.6999999999999993,468,22.3]
[null,"This is a summary of data in worksheet \"2. Fire Start Report\"",null,null,null,null,null,null,null,"2019/20",221.1,3.4,9.6999999999999993,412.8,22.3]
[null,"Kind of Fire Start by definition of fire start under clause 5 of F-factor Order","Total fires by cause",null,null,null,null,null,null,"2020/21",177.5,1.3,4.2,277.60000000000002,18.7]
[null,"Started in or originated from a distribution system",{"$f":"COUNTIF('2. Individual fire start info'!$N$38:$N$1876,'1. F-Factor summary'!$B8)","v":124},null,null,null,null,null,null,"2021/22",164.3,1.9,3.7,235.2,19]
[null,"Started by any tree, or part of a tree, falling upon or coming into contact with a distribution system",{"$f":"COUNTIF('2. Individual fire start info'!$N$38:$N$1876,'1. F-Factor summary'!$B9)","v":16},null,null,null,null,null,null,"2022/23",149.69999999999999,1.5,2.7,188,13.9]
[null,"Started by any person, bird, reptile or other animal coming into contact with a distribution system",{"$f":"COUNTIF('2. Individual fire start info'!$N$38:$N$1876,'1. F-Factor summary'!$B10)","v":10},null,null,null,null,null,null,"2023/24",131.69999999999999,1.7,2.7,185.5,14.2]
[null,"Started by lightning striking a distribution system or a part of a distribution system ",{"$f":"COUNTIF('2. Individual fire start info'!$N$38:$N$1876,'1. F-Factor summary'!$B11)","v":5},null,null,null,null,null,null,"2024/25",127,1.7,2.2999999999999998,147.9,11.7]
[null,"Started by any other thing forming part of or coming into contact with a distribution system",{"$f":"COUNTIF('2. Individual fire start info'!$N$38:$N$1876,'1. F-Factor summary'!$B12)","v":6}]
[null,"Otherwise started by a distribution system",{"$f":"COUNTIF('2. Individual fire start info'!$N$38:$N$1876,'1. F-Factor summary'!$B13)","v":0}]
[null,"Total",{"$f":"SUM(C8:C13)","v":161}]

{"sheet":"2. Individual fire start info","index":3,"n_rows":198,"n_cols":25,"rows_kept":198,"cut":false,"hidden":false,"merged":[[3,22,3,24],[4,22,4,24],[5,22,5,24],[7,1,7,21],[11,1,11,2],[9,1,9,21],[13,1,13,11],[22,1,22,21],[24,1,24,21],[14,1,14,20],[15,1,15,18],[16,1,16,18],[18,1,18,18],[21,1,21,18],[19,1,19,18],[23,1,23,18],[20,1,20,18],[17,1,17,18],[25,1,25,18],[27,1,27,20],[26,1,26,21],[35,19,35,21],[33,1,33,4],[35,2,35,10],[28,1,28,18],[29,1,29,18],[35,11,35,13],[35,14,35,17]]}
[null,{"$f":"IF(Cover!D27=\"\",\"[DNSP Name]\", Cover!D27)","v":"AusNet Services"}]
[null,"F-factor data reporting"]
[null,{"$f":"IF(Cover!D33=\"\",\"[Year]\",Cover!D33)","v":"2023/24"}]
[]
[]
[null,"Instructions:"]
[]
[null,{"$f":"\"Enter into this worksheet fire start data, from any IT system, which have been recorded by \"&IF(Cover!D27=\"\",\"[DNSP Name]\", Cover!D27)&\". Note that fire starts must be in accordance with the definition of a fire start in the Order In Council.\"","v":"Enter into this worksheet fire start data, from any IT system, which have been recorded by AusNet Services. Note that fire starts must be in accordance with the definition of a fire start in the Order In Council."}]
[]
[null,"\"Fire\" should be interpreted using its common meaning and can be defined as a process in which substances combine chemically with oxygen from the air and typically give out bright light, heat and smoke. A fire should be recorded where there is evidence of smoking, charring, scorching, burning or any other evidence that a fire had occurred.  "]
[]
[null,{"$f":"IF(Cover!D27=\"\",\"[DNSP Name] must provide:\", CONCATENATE(Cover!D27,\" must provide:\"))","v":"AusNet Services must provide:"}]
[]
[null,"Table 3 - Individual Fire Starts"]
[null,"   (1) Date - dd/mm/yyyy"]
[null,"   (2) Time - if known, the 24-hour time of the fire start hh:mm"]
[null,"   (3) Latitude and longitude of the fire start as decimal coordinates"]
[null,"   (4) Address of the property on which the incident occurred or closest to the incident"]
[null,"   (5) Asset number for the asset nearest the fire start"]
[null,{"$f":"\"   (6) Feeder ID for the polyphase overhead line or underground cable nearest the fire start in the \"&B1&\" network\"","v":"   (6) Feeder ID for the polyphase overhead line or underground cable nearest the fire start in the AusNet Services network"}]
[null,"   (7) Voltage on the line in which the fire start occurred (note: this may not be the nearest polyphase overhead line)"]
[null,"   (8) Network categorisation - CBD, Urban, Rural Long or Rural Short"]
[null,"   (9) Asset type of primary asset causing fire in accordance with OSIRIS asset categories"]
[null,"   (10) Where the asset involved in the fire is a transformer or an overhead or underground line, provide the phase, or phases, of the line or transformer"]
[null,"   (11) Kind of fire start in accordance with categories specified in Clause 5 of the F-factor Order-In-Council [Note: This is interpreted as the initiating event rather than the cause. For instance, a fuse failure resulting from a lightning strike would be attributed to \"lightning\" even if the fuse should have protected against such strikes.]"]
[null,"   (12) Identify the location of the fire start in accordance with the categories specified in Clause 11(b) of the F-factor Order-In-Council"]
[null,"   (13) Provide the BOM fire danger rating applicable at the time of the fire start (data is available on the EM-COP website) [Note: The fire danger rating applies from the time it was issued; ratings do no apply retrospectively. The rating from the previous day carries into the current day until the rating is changed. If no fire danger rating is issued for the day, a rating of \"No forecast\" applies for the whole day.]"]
[null,{"$f":"\"   (14) \"&IF(Cover!D27=\"\",\"[DNSP Name]\", Cover!D27)&\"'s record number for the incident\"","v":"   (14) AusNet Services's record number for the incident"}]
[null,"   (15) ESV's OSIRIS reference number for the incident"]
[null,"   (16) Free text description of the fault containing relevant comments from field reports "]
[]
[]
[]
[null,"Table 2: Individual Fire Starts"]
[]
[null,"Number","Fire starts",null,null,null,null,null,null,null,null,"Fire Type",null,null,"Risk Factors",null,null,null,"IRU \namount","Additional information"]
[null,null,"Date 1","Time 2","Latitude 3","Longitude 3","Address of incident 4","ID of \nnearest \nasset 5","ID of nearest \npolyphase \nline 6","Voltage of line in which \nfire start \noccurred 7","Network categorisation 8","Type of primary asset \ninvolved in fire start 9","Phase(s) of \nline or \ntransformer 10","Kind of fire start as per Clause 5\nof F-factor Order-In-Council 11","Location \narea 12","Location\nmultiplier","Fire \ndanger \nrating 13","Danger multiplier","Product of multipliers","DNSP record number 14","OSIRIS \n(ESV) reference \nnumber 15","Fault \ndescription 16"]
[{"$f":"COUNTA(C38:O38,Q38,T38:V38)","v":17},1,"2023-07-01","07:42:18",-38.593463,145.594887,"16 Toorak St, North Wonthaggi VIC 3995, Australia",2801941,"WGI33","Low voltage AC (<1kV)","RURAL SHORT"," - connection box","three phase","Started by any other thing forming part of or coming into contact with a distribution system","LBRA only",{"$f":"IF(O38=\"\",\"\",IF(O38=\"LBRA only\",0.2,IF(O38=\"HBRA only\",1,IF(O38=\"within electric line construction area\",19.8,IF(O38=\"within area delineated on plan LEGL./16-354\",4.6,\"\")))))","v":0.2},"No rating",{"$f":"IF(Q38=\"\",\"\",IF(C38>=DATE(2022,9,1),IF(Q38=\"No rating\",0.05,IF(Q38=\"Moderate\",0.334,IF(Q38=\"High\",0.678,IF(Q38=\"Extreme\",2.272,4.754)))),0.05))","v":0.05},{"$f":"IF(OR(P38=\"\",R38=\"\"),\"\",IF(AND(O38=\"within electric line construction area\",Q38=\"No rating\"),1,P38*R38))","v":1.0000000000000002E-2},"E0095973","20230704SPN_01","A FOLCB on the pole has caught fire. A birds nest seems to be the cause of the fire.",null,null,"Overhead conductors"]
[17,2,"2023-07-04","08:44:00",-37.849651999999999,147.603937,"230 Forge Creek Rd, Bairnsdale VIC 3875, Australia",1608976,"BDL33","22kV AC","RURAL SHORT"," - overhead conductor (bare; all aluminium conductor)","single phase","Started by any tree, or part of a tree, falling upon or coming into contact with a distribution system","within area delineated on plan LEGL./16-354",4.5999999999999996,"No rating",{"$f":"IF(Q39=\"\",\"\",IF(C39>=DATE(2022,9,1),IF(Q39=\"No rating\",0.05,IF(Q39=\"Moderate\",0.334,IF(Q39=\"High\",0.678,IF(Q39=\"Extreme\",2.272,4.754)))),0.05))","v":0.05},{"$f":"IF(OR(P39=\"\",R39=\"\"),\"\",IF(AND(O39=\"within electric line construction area\",Q39=\"No rating\"),1,P39*R39))","v":0.22999999999999998},"E0096003","20230705SPN_01","A stick has landed onto the 22KV bare open wire causing contact with 1 conductor and the X arm and the stick caught fire. Protection operated and there was no ground fire.",null,null," - overhead conductor (bare; aluminium core steel reinforced)"]
[17,3,"2023-07-10","17:33:05",-38.029159,145.82444100000001,"95 Tonkin Rd, Labertouche VIC 3816, Australia",2716934,"WGL21","22kV AC","RURAL SHORT"," - fuse (EDO fuse)","single phase","Started in or originated from a distribution system","HBRA only",1,"No rating",0.05,0.05,"E0096246","20230711SPN_01","Crew arrived on site and found an EDO fuse failed to eject and candled. No ground fire.",null,null," - overhead conductor (bare; all aluminium conductor)"]
[17,4,"2023-07-19","19:53:40",-38.059241,145.357347,"11 Ferncroft Ct, Berwick VIC 3806, Australia",502410,"OFR21","Low voltage AC (<1kV)","URBAN"," - connection box","three phase","Started in or originated from a distribution system","LBRA only",0.2,"No rating",0.05,1.0000000000000002E-2,"E0096846","20230803SPN_01","A LV Krone box has caught fire. No ground fire.",null,null," - overhead conductor (bare; copper)"]
[17,5,"2023-07-20","10:44:45",-36.249426,147.02781300000001,"24 Kiewa-Bonegilla Rd, Tangambalanga VIC 3691, Australia",5202210,"WOTS11","22kV AC","RURAL LONG"," - fuse (boric acid)","three phase","Started in or originated from a distribution system","LBRA only",0.2,"No rating",0.05,1.0000000000000002E-2,"E0096680","20230720SPN_01","Crew arrived on site and found a candled fuse that failed to eject.",null,null," - overhead conductor (bare; steel)"]
[17,6,"2023-07-20","20:55:44",-38.198148000000003,146.596386,"55 Hourigan Dr, Traralgon East VIC 3844, Australia",2607299,"TGN41","Low voltage AC (<1kV)","RURAL LONG"," - connection box","single phase","Started in or originated from a distribution system","HBRA only",1,"No rating",0.05,0.05,"E0096684","20230721SPN_01","CFA reported they attended site and found a FOLCB on the pole had small flames coming from the pole box.",null,null," - overhead conductor (ABC)"]
[17,7,"2023-07-22","11:41:02",-38.153911999999998,145.614046,"170 Murray Rd, Cora Lynn VIC 3814, Australia",512814,"PHM33","22kV AC","RURAL LONG"," - fuse (boric acid)","three phase","Started in or originated from a distribution system","HBRA only",1,"No rating",0.05,0.05,"E0096714","20230725SPN_01","Crew attended site and found a candled fuse. No ground fire.",null,null," - overhead conductor (covered uninsulated)"]
[17,8,"2023-07-28","06:36:11",-38.074860999999999,145.71464800000001,"3295 Princes Freeway, Bunyip North VIC 3815, Australia",510941,"WGL12","22kV AC","RURAL LONG"," - fuse (boric acid)","three phase","Started in or originated from a distribution system","HBRA only",1,"No rating",0.05,0.05,"E0096763","20230731SPN_01","Crew found a candled fuse that failed to eject.",null,null," - overhead conductor (insulated)"]
[17,9,"2023-07-29","17:11:38",-38.638241000000001,146.11739499999999,"383 Falls Rd, Buffalo VIC 3958, Australia",2024592,"FTR21","22kV AC","RURAL LONG"," - fuse (boric acid)","single phase","Started by any person, bird, reptile or other animal coming into contact with a distribution system","HBRA only",1,"No rating",0.05,0.05,"E0096776","20230731SPN_03","Crew found a candled BA fuse and another fuse operated correctly. The fault was caused by a bird. No ground fire.",null,null,"Service lines"]
[17,10,"2023-08-04","09:24:40",-38.092046000000003,146.82888,"442 Nambrok Rd, Nambrok VIC 3847, Australia",2510038,"MFA22","Low voltage AC (<1kV)","RURAL LONG"," - connection box","three phase","Started in or originated from a distribution system","LBRA only",0.2,"No rating",0.05,1.0000000000000002E-2,"E0096879","20230804SPN_01","A krone box has caught fire and caused a 12 meter square ground fire. Center phase HV fuse operated.",null,null," - overhead service conductor (residential)"]
[17,11,"2023-08-10","00:48:48",-38.062131000000001,145.820887,"Drayton Rd, Labertouche VIC 3816, Australia",2716858,"WGL21","22kV AC","RURAL SHORT"," - overhead conductor (bare; steel)","three phase","Started by any tree, or part of a tree, falling upon or coming into contact with a distribution system","HBRA only",1,"No rating",0.05,0.05,"E0097256","20230918SPN_02","A tree branch has blown onto the O/H 22kv open wire conductors causing it to track and catch fire. This caused the conductors to fail and fall to the ground. ACR operated.",null,null," - overhead service conductor (commercial / industrial)"]
[17,12,"2023-08-28","06:01:55",-38.015433000000002,146.70660699999999,"Inniscarra, 2869 Traralgon-Maffra Rd, Cowwarr VIC 3857, Australia",2601848,"TGN31","22kV AC","RURAL LONG"," - fuse (EDO fuse)","single phase","Started in or originated from a distribution system","HBRA only",1,"No rating",0.05,0.05,"E0097716","20230828SPN_03","The crew arrived on site and found a candled EDO fuse.",null,null," - overhead service conductor (subdivision / construction)"]
[17,13,"2023-09-08","08:15:27",-38.005454,145.41080500000001,"12 Salisbury Rd, Beaconsfield Upper VIC 3808, Australia",521207,"BWN14","22kV AC","RURAL SHORT"," - fuse (boric acid)","three phase","Started in or originated from a distribution system","HBRA only",1,"No rating",0.05,0.05,"E0098023","20230908SPN_02","Crew arrived and found 1 blown and 1 candled BA fuses.",null,null," - overhead service conductor (other)"]
[17,14,"2023-09-09","19:01:54",-38.107072000000002,145.331017,"1 Clydevale Ave, Clyde North VIC 3978, Australia",2601601556,"CLN11","Low voltage AC (<1kV)","RURAL SHORT"," - luminaires (minor road)","single phase","Started in or originated from a distribution system","LBRA only",0.2,"No rating",0.05,1.0000000000000002E-2,"E0098036","20230911SPN_01","Yhe crew arrived on site and found the street light head was damaged by fire.",null,null," - underground service cable (residential)"]
[17,15,"2023-09-10","17:29:37",-37.927731999999999,145.40066300000001,"13 Aura Vale Rd, Menzies Creek VIC 3159, Australia",418798,"BGE22","Low voltage AC (<1kV)","RURAL SHORT"," - connection box","single phase","Started in or originated from a distribution system","within area delineated on plan LEGL./16-354",4.5999999999999996,"No rating",0.05,0.22999999999999998,"E0098038","20230911SPN_02","A FOLCB on the pole failed and caught fire, no ground fire.",null,null," - underground service cable (commercial / industrial)"]
[17,16,"2023-09-11","18:09:12",-38.118395,145.54022800000001,"525 Five Mile Rd, Pakenham VIC 3810, Australia",515365,"PHM31","22kV AC","RURAL SHORT"," - fuse (boric acid)","three phase","Started in or originated from a distribution system","HBRA only",1,"No rating",0.05,0.05,"E0098058","20230912SPN_02","Crew found a candled BA fuse.",null,null," - underground service cable (subdivision / construction)"]
[17,17,"2023-09-13","11:25:16",-37.862673000000001,145.74962300000001,"1630 Yarra Junction-Noojee Rd, Powelltown VIC 3797, Australia",1404865,"WYK23","22kV AC","RURAL SHORT"," - overhead conductor (ABC)","three phase","Started in or originated from a distribution system","within area delineated on plan LEGL./16-354",4.5999999999999996,"No rating",0.05,0.22999999999999998,"E0098090","20230915SPN_02","A HV ABC has failed and caught fire. No ground fire and protection operated.",null,null," - underground service cable (other)"]
[17,18,"2023-09-17","07:52:54",-38.593639000000003,145.609275,"149 Korumburra Rd, North Wonthaggi VIC 3995, Australia",2800419,"WGI23","22kV AC","RURAL SHORT"," - switch (any other type)","three phase","Started by any person, bird, reptile or other animal coming into contact with a distribution system","within area delineated on plan LEGL./16-354",4.5999999999999996,"No rating",0.05,0.22999999999999998,"E0098130","20230918SPN_05","There was a 2M By 2M Grass fire under LA17905 after successful re-close of WGI23. Testers working onsite at WGI under a planned job heard a bang ( the re-close of WGI23) and saw and put out 2M by 2M ground fire under feeder exit switch LA17905 at LIS: 2800419. (Lance Beament of Tech test -0448015412) ",null,null,"Underground cables"]
[17,19,"2023-09-19","22:27:15",-38.139350999999998,146.493516,"100 Boulton Cres, Tyers VIC 3844, Australia",2606697,"TGN31","22kV AC","RURAL LONG"," - fuse (boric acid)","single phase","Started in or originated from a distribution system","HBRA only",1,"No rating",0.05,0.05,"E0098178","20230920SPN_01","Crew found a candled fuse. No ground fire.",null,null," - underground cable"]
[17,20,"2023-09-21","06:05:48",-37.803434000000003,145.53059999999999,"45 Longs Rd, Woori Yallock VIC 3139, Australia",1406272,"WYK23","12.7kV AC (SWER)","RURAL SHORT"," - fuse (boric acid)","single wire earth return (SWER)","Started in or originated from a distribution system","within area delineated on plan LEGL./16-354",4.5999999999999996,"No rating",0.05,0.22999999999999998,"E0098198","20230921SPN_01","Crew found a candled fuse on SWER pole.",null,null," - underground communications cable"]
[17,21,"2023-09-25","08:40:59",-38.032155000000003,146.95453599999999,"Denison, VIC 3858, Australia",2511503,"MFA34","22kV AC","RURAL SHORT"," - insulators","three phase","Started in or originated from a distribution system","LBRA only",0.2,"No rating",0.05,1.0000000000000002E-2,"E0098255","20230925SPN_02","A 22KV H/V insulator on the transformer has failed causing a 50cm X 50cm ground fire.",null,null,"Poles"]
[17,22,"2023-09-28","16:19:27",-37.952297000000002,147.350976,"582 Frews Rd, Meerlieu VIC 3862, Australia",1601243,"BDL44","12.7kV AC (SWER)","RURAL LONG"," - transformer (pole mounted)","single wire earth return (SWER)","Started by any person, bird, reptile or other animal coming into contact with a distribution system","within area delineated on plan LEGL./16-354",4.5999999999999996,"No rating",0.05,0.22999999999999998,"E0098325","20230928SPN_01","It was reported a bird has hit the SWER line pole with a sub on it, and caught fire, dropped to the ground and caused a 400 meter square ground fire.",null,null," - pole (concrete)"]
[17,23,"2023-10-01","09:58:02",-38.164977,146.40689699999999,"34 Toms Bridge Rd, Yallourn North VIC 3825, Australia",2619242,"MWL14","22kV AC","RURAL SHORT"," - overhead conductor (bare; copper)","three phase","Started by any tree, or part of a tree, falling upon or coming into contact with a distribution system","HBRA only",1,"High",0.67800000000000005,0.67800000000000005,"E0100799","20240117SPN_03","While I was reviewing data sent to me to complete the quarterly report, I have identified a serious incident that was not reported. A tree has failed and caused 2 bays of 22KV open wire conductors fall to the ground causing a 280 meter square ground fire before the ACR operated.",null,null," - pole (steel)"]
[17,24,"2023-10-03","04:18:48",-38.008929000000002,146.77931100000001,"3591 Traralgon-Maffra Rd, Heyfield VIC 3858, Australia",2508309,"MFA34","22kV AC","RURAL SHORT"," - overhead conductor (bare; aluminium core steel reinforced)","three phase","Started by any tree, or part of a tree, falling upon or coming into contact with a distribution system","LBRA only",0.2,"Moderate",0.33400000000000002,6.6800000000000012E-2,"E0098491","20231003SPN_01","A tree has fallen onto the 22KV open wire conductors bringing them to the ground causing an 800 meter square ground fire and tripping the ACR.",null,null," - pole (wood)"]
[17,25,"2023-10-03","18:41:43",-37.826771000000001,147.62705,"240C Main St, Bairnsdale VIC 3875, Australia",1603417,"BDL43","22kV AC","URBAN"," - surge diverter","three phase","Started by any other thing forming part of or coming into contact with a distribution system","LBRA only",0.2,"Moderate",0.33400000000000002,6.6800000000000012E-2,"E0098518","20231004SPN_02","A bird nest on the pole has caused the 22KV conductors to flash over causing the birds nest to catch fire and operating the feeder breaker. There was no ground fire.",null,null,"Crossarms"]
[17,26,"2023-10-13","05:06:01",-38.188485999999997,146.25386800000001,"54 Wirraway St, Moe VIC 3825, Australia",2204901,"MOE11","22kV AC","RURAL SHORT"," - fuse (boric acid)","three phase","Started in or originated from a distribution system","LBRA only",0.2,"No rating",0.05,1.0000000000000002E-2,"E0098686","20231201SPN_02","Crew arrived on site and found 3 Candled fuses. No ground fire.",null,null," - crossarm (wood)"]
[17,27,"2023-10-16","09:39:17",-37.813872000000003,147.08653200000001,"George Creek Streamside Reserve, 365 Freestone Creek Rd, Briagolong VIC 3860, Australia",2514359,"MFA21","22kV AC","RURAL LONG"," - fuse (boric acid)","single phase","Started in or originated from a distribution system","HBRA only",1,"Moderate",0.33400000000000002,0.33400000000000002,"E0098735","20231017SPN_01","The crew arrived on site and found a candled BA fuse",null,null," - crossarm (steel)"]
[17,28,"2023-10-18","16:31:46",-38.250093999999997,147.05167299999999,"5389 S Gippsland Hwy, Stradbroke VIC 3851, Australia",2502584,"SLE31","22kV AC","RURAL LONG"," - fuse (boric acid)","single phase","Started in or originated from a distribution system","within area delineated on plan LEGL./16-354",4.5999999999999996,"No rating",0.05,0.22999999999999998,"E0098778","20231020SPN_01","Crew found a candled BA fuse that failed to eject.",null,null," - crossarm (other)"]
[17,29,"2023-10-19","13:17:45",-38.316026000000001,146.42049900000001,"1 Oakhill Tce, Churchill VIC 3842, Australia",2615641,"MWL24","22kV AC","RURAL SHORT"," - overhead conductor (bare; all aluminium conductor)","three phase","Started by any person, bird, reptile or other animal coming into contact with a distribution system","LBRA only",0.2,"No rating",0.05,1.0000000000000002E-2,"E0098791","20231020SPN_02","A magpie got caught up with the 22KV O/H bare conductors and dropped to the ground causing a 1 meter square ground fire. protection tripped and reclosed. ",null,null,"Overhead assets"]
[17,30,"2023-10-19","18:39:04",-37.703698000000003,145.15315699999999,"107 Railway Parade, Eltham VIC 3095, Australia",922143,"ELM26","Low voltage AC (<1kV)","RURAL SHORT"," - overhead conductor (bare; copper)","three phase","Started by any other thing forming part of or coming into contact with a distribution system","LBRA only",0.2,"Moderate",0.33400000000000002,6.6800000000000012E-2,"E0098793","20231020SPN_03","A truck hauling an excavator has hit a Telstra cable causing the timber pole to fall and the LV bare conductor on the ground caused a 7 meter square ground fire. 1 LV fuse operated.",null,null," - capacity balancing units"]
[17,31,"2023-10-22","14:11:44",-37.848339000000003,145.529471,"2405 Healesville - Koo Wee Rup Rd, Yellingbo VIC 3139, Australia",1316014,"LDL13","12.7kV AC (SWER)","RURAL SHORT"," - insulators","single wire earth return (SWER)","Started in or originated from a distribution system","within area delineated on plan LEGL./16-354",4.5999999999999996,"Moderate",0.33400000000000002,1.5364,"E0098817","20231023SPN_01","A SWER conductor has failed and fallen to the ground operating the ACR. A faulty insulator has caused tracking which caused the top of the pole to catch fire damaging the conductor and other equipment. No ground fire.",null,null," - connector / termination"]
[17,32,"2023-10-23","18:51:16",-37.969946,146.955791,"5784 Traralgon-Maffra Rd, Maffra VIC 3860, Australia",2515122,"MFA22","22kV AC","RURAL LONG"," - overhead conductor (bare; all aluminium conductor)","three phase","Started in or originated from a distribution system","LBRA only",0.2,"Moderate",0.33400000000000002,6.6800000000000012E-2,"E0098854","20231024SPN_01","A 22KV Conductor was down on the ground between LIS : 2515122 & 2515123. 2 Blown BA Fuses  at LIS : 2515122. Ground Fire in the Vicinity. ( 30 Square Meters ).",null,null," - dropper / bridge"]
[17,33,"2023-10-27","13:21:00",-38.503366,145.281159,"8 Sunderland Bay Rd, Sunderland Bay VIC 3922, Australia",2808961,"PHI11","22kV AC","RURAL SHORT"," - fuse (boric acid)","three phase","Started in or originated from a distribution system","LBRA only",0.2,"Moderate",0.33400000000000002,6.6800000000000012E-2,"E0099760","20231127SPN_01","Crew arrived on site and found a candled BA fuse. No ground fire.",null,null," - guy wire"]
[17,34,"2023-11-02","12:46:02",-37.481718000000001,145.27643,"896 Whittlesea-Kinglake Rd, Kinglake West VIC 3757, Australia",1400105,"KLK21","22kV AC","RURAL SHORT"," - automatic circuit recloser (ACR)","three phase","Started by any person, bird, reptile or other animal coming into contact with a distribution system","within area delineated on plan LEGL./16-354",4.5999999999999996,"Moderate",0.33400000000000002,1.5364,"E0099062","20231201SPN_03","A crow has built a birds nest on the ACR and the bird has gone across supply Tx leads which has blown the line side center phase lead in half. This caused a 70 meter ground fire.\n\n",null,null," - insulator tie wires / connections"]
[17,35,"2023-11-09","05:36:32",-36.219949,147.953385,"55 Hall Track, Thowgla Valley VIC 3707, Australia",5216904,"WOTS24","22kV AC","RURAL LONG"," - transformer (pole mounted)","single phase","Started by lightning striking a distribution system or a part of a distribution system ","within area delineated on plan LEGL./16-354",4.5999999999999996,"Moderate",0.33400000000000002,1.5364,"E0099316","20231113SPN_01","Lightening has struck the 22kv pole top sub causing oil to leak and catch fire on the pole. No ground fire. 1 BA fuse operated.",null,null," - insulators"]
[17,36,"2023-11-09","06:36:28",-37.999353999999997,146.834622,"Rumpffs Ln, Heyfield VIC 3858, Australia",2508001,"MFA34","22kV AC","RURAL SHORT"," - fuse (EDO fuse)","single phase","Started in or originated from a distribution system","LBRA only",0.2,"No rating",0.05,1.0000000000000002E-2,"E0099722","20231124SPN_02","Crew arrived on site and found a candled EDO fuse. No ground fire.",null,null," - tower"]
[17,37,"2023-11-10","13:47:02",-37.933253999999998,145.564818,"211 The Pack Trak, Gembrook VIC 3783, Australia",417072,"OFR23","22kV AC","RURAL LONG"," - fuse (boric acid)","three phase","Started in or originated from a distribution system","HBRA only",1,"Moderate",0.33400000000000002,0.33400000000000002,"E0099333","20231113SPN_03","An asset assessor reported defective melted BA fuses at LIS 417072. ",null,null," - traction lines"]
[17,38,"2023-11-11","06:23:02",-37.173977000000001,145.091903,"Wahroonga, 470 Elliotts Rd, Broadford VIC 3658, Australia",4703405,"SMR22","22kV AC","RURAL LONG"," - fuse (boric acid)","single phase","Started in or originated from a distribution system","within electric line construction area",19.8,"Moderate",0.33400000000000002,6.6132000000000009,"E0099334","20231113SPN_04","Crew attended and found a candled BA fuse.",null,null,"Underground assets"]
[{"$f":"COUNTA(C76:O76,Q76,T76:V76)","v":17},39,"2023-11-14","15:32:00",-38.613599999999998,145.56698499999999,"43 Chisholm Rd, Wonthaggi VIC 3995, Australia",5738889,"WGI22","22kV AC","RURAL SHORT"," - fuse (EDO fuse)","single phase","Started by lightning striking a distribution system or a part of a distribution system ","within area delineated on plan LEGL./16-354",{"$f":"IF(O76=\"\",\"\",IF(O76=\"LBRA only\",0.2,IF(O76=\"HBRA only\",1,IF(O76=\"within electric line construction area\",19.8,IF(O76=\"within area delineated on plan LEGL./16-354\",4.6,\"\")))))","v":4.5999999999999996},"Moderate",0.33400000000000002,1.5364,"E0099410","20231115SPN_01","Crew arrived on site and found a candled EDO fuse that was struck by lightening.",null,null," - LV pillar"]
[17,40,"2023-11-18","04:17:17",-38.106023,146.16839899999999,"44 Daveys Rd, Trafalgar VIC 3824, Australia",2200115,"MOE21","22kV AC","RURAL LONG"," - fuse (boric acid)","single phase","Started in or originated from a distribution system","within area delineated on plan LEGL./16-354",4.5999999999999996,"Moderate",0.33400000000000002,1.5364,"E0099513","20231120SPN_01","Crew arrived on site and found a candled BA fuse.",null,null," - services pit"]
[17,41,"2023-11-23","06:11:01",-38.061649000000003,146.891741,"490 Soldiers Rd, Nambrok VIC 3847, Australia",2509411,"MFA22","22kV AC","RURAL LONG"," - fuse (EDO fuse)","single phase","Started in or originated from a distribution system","LBRA only",0.2,"Moderate",0.33400000000000002,6.6800000000000012E-2,"E0099702","20231123SPN_01","The crew arrived on site and found a candled EDO fuse, No ground fire.",null,null,"Transformers"]
[17,42,"2023-11-27","05:26:56",-38.452641999999997,145.70197300000001,"815 Bena-Kongwak Rd, Bena VIC 3946, Australia",2007998,"LGA23","22kV AC","RURAL LONG"," - fuse (boric acid)","single phase","Started in or originated from a distribution system","HBRA only",1,"No rating",0.05,0.05,"E0099772","20231127SPN_02","Crew arrived on site and found 2 blown BA fuse in which 1 had candled. No ground fire.",null,null," - transformer (pole mounted)"]
[17,43,"2023-11-28","05:51:32",-38.720511999999999,145.907634,"72 Fishers Rd, Tarwin Lower VIC 3956, Australia",2804487,"WGI24","12.7kV AC (SWER)","RURAL SHORT"," - fuse (EDO fuse)","single wire earth return (SWER)","Started in or originated from a distribution system","within area delineated on plan LEGL./16-354",4.5999999999999996,"No rating",0.05,0.22999999999999998,"E0099783","20231128SPN_01","Crew arrived and found a candled EDO fuse. No ground fire.",null,null," - transformer (kiosk mounted)"]
[17,44,"2023-11-28","07:22:31",-38.291930000000001,146.49294800000001,"80 Sagars Rd, Hazelwood North VIC 3840, Australia",2606237,"TGN23","22kV AC","RURAL SHORT"," - fuse (EDO fuse)","single phase","Started in or originated from a distribution system","HBRA only",1,"No rating",0.05,0.05,"E0099810","20231129SPN_01","Crew arrived on site and found a candled EDO fuse. No ground fire.",null,null," - transformer (ground outdoor mounted)"]
[17,45,"2023-11-29","04:26:43",-37.624927999999997,145.24255199999999,"100 Halley Rd, Panton Hill VIC 3759, Australia",924606,"DRN23","12.7kV AC (SWER)","RURAL LONG"," - fuse (boric acid)","single wire earth return (SWER)","Started in or originated from a distribution system","HBRA only",1,"Moderate",0.33400000000000002,0.33400000000000002,"E0099822","20231129SPN_02","The crew arrived on site and found a candled BA fuse. No ground fire.",null,null," - transformer (indoor chamber mounted)"]
[17,46,"2023-11-29","11:51:36",-37.870950000000001,145.252409,"71 Parkhurst Dr, Knoxfield VIC 3180, Australia",1222103,"BRA23","22kV AC","URBAN"," - overhead conductor (bare; all aluminium conductor)","three phase","Started by any tree, or part of a tree, falling upon or coming into contact with a distribution system","LBRA only",0.2,"Moderate",0.33400000000000002,6.6800000000000012E-2,"E0099836","20231130SPN_02","A tree branch has blown onto the 22KV H/V open wire conductors causing it to burn. Protection operated and no ground fire.",null,null," - transformer (any other type)"]
[17,47,"2023-11-30","02:04:27",-37.918194999999997,145.37215800000001,"76 Temple Rd, Selby VIC 3159, Australia",1300657,"BGE13","Low voltage AC (<1kV)","RURAL SHORT"," - overhead conductor (ABC)","three phase","Started in or originated from a distribution system","within electric line construction area",19.8,"Moderate",0.33400000000000002,6.6132000000000009,"E0099846","20231130SPN_01","An LV ABC barrel clamp has caught fire causing burn marks on the pole. No ground fire.",null,null," - measurement transformer (current transformer)"]
[17,48,"2023-11-30","09:28:22",-38.087615,146.998929,"393 Myrtlebank-Fulham Rd, Fulham VIC 3851, Australia",2501026,"SLE14","22kV AC","RURAL SHORT"," - fuse (EDO fuse)","three phase","Started in or originated from a distribution system","within area delineated on plan LEGL./16-354",4.5999999999999996,"No rating",0.05,0.22999999999999998,"E0099874","20231130SPN_03","Crew arrived and found a candled EDO fuse. No ground fire.",null,null," - measurement transformer (voltage transformer)"]
[17,49,"2023-11-30","11:47:22",-37.618727999999997,145.23773,"90 Belfields Rd, Cottles Bridge VIC 3099, Australia",924637,"DRN23","12.7kV AC (SWER)","RURAL LONG"," - fuse (EDO fuse)","single wire earth return (SWER)","Started in or originated from a distribution system","HBRA only",1,"Moderate",0.33400000000000002,0.33400000000000002,"E0099896","20231201SPN_01","Crew arrived on site and found a candled EDO fuse. No ground fire.",null,null," - measurement transformer (capacitive voltage transformer)"]
[17,50,"2023-11-30","17:39:16",-37.697792999999997,148.58470500000001,"Princes Hwy, Brodribb River VIC 3888, Australia",1908473,"NLA31","Low voltage AC (<1kV)","RURAL LONG"," - dropper / bridge","three phase","Started in or originated from a distribution system","HBRA only",1,"No rating",0.05,0.05,"E0099902","20231201SPN_04","The Crew arrived and found one HV blown fuse at BD18130. When they replaced the blown fuse the LV leads Blew  and caused a small fire on the pole structure. ",null,null,"Fuses and switchgear"]
[17,51,"2023-12-01","19:08:49",-37.414726000000002,144.98436899999999,"4 Forbes Blvd, Wallan VIC 3756, Australia",913212,"KLO24","22kV AC","RURAL SHORT"," - fuse (EDO fuse)","three phase","Started in or originated from a distribution system","LBRA only",0.2,"Moderate",0.33400000000000002,6.6800000000000012E-2,"E0099915","20231204SPN_01","Crew arrived on site and found 2 blown EDO fuses and 1 candled EDO fuse. No ground fire.",null,null," - fuse (boric acid)"]
[17,52,"2023-12-05","19:10:14",-37.976987000000001,145.329229,"37 Bailey Rd, Narre Warren North VIC 3804, Australia",520198,"BGE23","22kV AC","RURAL SHORT"," - transformer (pole mounted)","single phase","Started by any person, bird, reptile or other animal coming into contact with a distribution system","within area delineated on plan LEGL./16-354",4.5999999999999996,"Moderate",0.33400000000000002,1.5364,"E0100116","20231207SPN_01","A possum has caused a fault on a 22kv pole transformer resulting with tracking down the pole and pole burning around the bottom transformer mounting bolt.",null,null," - fuse (EDO fuse)"]
[17,53,"2023-12-06","15:15:00",-37.470793,144.97440700000001,"5/9 Old Hume Hwy, Beveridge VIC 3753, Australia",912907,"KLO24","Low voltage AC (<1kV)","RURAL SHORT"," - connection box","single phase","Started in or originated from a distribution system","within area delineated on plan LEGL./16-354",4.5999999999999996,"Moderate",0.33400000000000002,1.5364,"E0100736","20240115SPN_01","Crew arrived and found a pole mounted FOLCB had caught fire. No Ground fire. LV sub fuse operated.",null,null," - fuse (Fault Tamer)"]
[17,54,"2023-12-07","11:14:14",-36.798366000000001,146.977172,"828 Morses Creek Rd, Wandiligong VIC 3744, Australia",4509797,"BRT11","Low voltage AC (<1kV)","RURAL SHORT"," - transformer (kiosk mounted)","three phase","Started by any other thing forming part of or coming into contact with a distribution system","HBRA only",1,"Moderate",0.33400000000000002,0.33400000000000002,"E0100147","20231208SPN_01","Long grass had grown inside of the LV side of kiosk Bick Austin S/S causing a small fire which was contained within the substation. 3 phase LV C/B operated. ",null,null," - fuse (powder filled)"]
[17,55,"2023-12-10","07:37:48",-38.071140999999997,146.17523299999999,"1632 Willow Grove Rd, Willow Grove VIC 3825, Australia",2200854,"MOE13","22kV AC","RURAL SHORT"," - fuse (boric acid)","single phase","Started in or originated from a distribution system","within area delineated on plan LEGL./16-354",4.5999999999999996,"No rating",0.05,0.22999999999999998,"E0100193","20231211SPN_01","The crew arrived on site and found a candled BA fuse. No ground fire.",null,null," - fuse (any other type)"]
[17,56,"2023-12-14","02:17:22",-37.822521999999999,147.84964299999999,"1922 Princes Hwy, Swan Reach VIC 3903, Australia",1900088,"BDL32","22kV AC","RURAL SHORT"," - fuse (EDO fuse)","three phase","Started in or originated from a distribution system","within area delineated on plan LEGL./16-354",4.5999999999999996,"No rating",0.05,0.22999999999999998,"E0100277","20231214SPN_01","The crew arrived on site and found an EDO fuse had candled. No ground fire.",null,null," - circuit breaker"]
[17,57,"2023-12-14","05:53:50",-36.554295000000003,146.50921600000001,"Rosewood, 1357 Carboor-Everton Rd, Bobinawarrah VIC 3678, Australia",5100294,"WN5","22kV AC","RURAL LONG"," - fuse (EDO fuse)","single phase","Started in or originated from a distribution system","within area delineated on plan LEGL./16-354",4.5999999999999996,"Moderate",0.33400000000000002,1.5364,"E0100285","20231215SPN_01","Crew arrived on site and found a candled EDO fuse. No ground fire.",null,null," - switch (disconnector/isolator)"]
[17,58,"2023-12-15","06:04:45",-37.813994999999998,145.35267099999999,"449 Sheffield Rd, Montrose VIC 3765, Australia",1001314,"CYN33","22kV AC","URBAN"," - fuse (boric acid)","three phase","Started in or originated from a distribution system","within electric line construction area",19.8,"Moderate",0.33400000000000002,6.6132000000000009,"E0100290","20231215SPN_02","Crew arrived and found a candled BA fuse. No ground fire.",null,null," - switch (earth)"]
[17,59,"2023-12-19","22:15:15",-38.093223999999999,145.71539200000001,"51 Hope St, Bunyip VIC 3815, Australia",510754,"WGL12","22kV AC","RURAL LONG"," - overhead conductor (bare; aluminium core steel reinforced)","three phase","Started in or originated from a distribution system","LBRA only",0.2,"Moderate",0.33400000000000002,6.6800000000000012E-2,"E0100334","20231220SPN_01","A 22KV O/H bare conductor failed and fell to the ground. Protection did not operate and normally wouldn't due to the conductor being back-fed from several transformers. The conductor remained live on the ground until the circuit was isolated. The green wet grass had smoldered where the conductor had fallen which was decided to be reported as a 1 meter square ground fire.",null,null," - switch (FuseSaver)"]
[17,60,"2023-12-21","10:03:12",-38.320771999999998,145.70886400000001,"1035 Mount Lyall Rd, Nyora VIC 3987, Australia",2025950,"LGA12","12.7kV AC (SWER)","RURAL SHORT"," - fuse (boric acid)","single wire earth return (SWER)","Started in or originated from a distribution system","HBRA only",1,"Moderate",0.33400000000000002,0.33400000000000002,"E0100410","20231221SPN_03","Crew arrived and found a candled BA fuse on the SWER line.",null,null," - switch (any other type)"]
[17,61,"2023-12-23","06:08:39",-37.801647000000003,145.307153,"460 State Route 62, Kilsyth VIC 3137, Australia",5812187,"CYN33","Low voltage AC (<1kV)","URBAN"," - luminaires (major road)","single phase","Started in or originated from a distribution system","LBRA only",0.2,"Moderate",0.33400000000000002,6.6800000000000012E-2,"E0100657","20240108SPN_05","A street light head failed and caught fire.",null,null,"SCADA, network control and protection systems"]
[17,62,"2023-12-25","20:14:42",-38.631042999999998,145.72608,"1 Bayview Ave, Inverloch VIC 3996, Australia",2809548,"WGI31","22kV AC","RURAL SHORT"," - insulators","three phase","Started in or originated from a distribution system","LBRA only",0.2,"Moderate",0.33400000000000002,6.6800000000000012E-2,"E0100456","20231229SPN_01","Tracking along a 22KV insulator caused a pole fire. No ground fire.",null,null," - audio frequency load controller (AFLC)"]
[17,63,"2023-12-28","17:34:14",-37.636431999999999,145.22921600000001,"172 Gosfield Rd, Panton Hill VIC 3759, Australia",920088,"DRN23","22kV AC","RURAL LONG"," - fuse (boric acid)","single phase","Started in or originated from a distribution system","HBRA only",1,"Moderate",0.33400000000000002,0.33400000000000002,"E0100470","20231229SPN_02","Crew arrived and found a candled BA fuse. No ground fire",null,null," - arc suppresion coil"]
[17,64,"2023-12-29","11:04:58",-36.471257999999999,147.248706,"78 Little Snowy Creek Rd, Eskdale VIC 3701, Australia",5217898,"WOTS13","22kV AC","RURAL LONG"," - fuse (boric acid)","three phase","Started in or originated from a distribution system","within area delineated on plan LEGL./16-354",4.5999999999999996,"Moderate",0.33400000000000002,1.5364,"E0100471","20240102SPN_01","Crew arrived on site and found a candled BA fuse and a small 40 meter square ground fire. Feeder Protection also operated",null,null," - automatic circuit recloser (ACR)"]
[17,65,"2024-01-01","04:18:02",-36.375576000000002,146.720268,"57 Old Stanley Rd, Beechworth VIC 3747, Australia",4506281,"MYT12","22kV AC","RURAL LONG"," - overhead conductor (bare; all aluminium conductor)","three phase","Started by any tree, or part of a tree, falling upon or coming into contact with a distribution system","within area delineated on plan LEGL./16-354",4.5999999999999996,"Moderate",0.33400000000000002,1.5364,"E0100507","20240102SPN_02","A tree has fallen across the 22KV O/H bare conductors causing a 20 meter square ground fire. Protection operated.",null,null," - communications linear assets"]
[17,66,"2024-01-02","18:19:44",-37.683622999999997,145.45026300000001,"860 Maroondah Hwy, Coldstream VIC 3770, Australia",1409348,"LDL23","22kV AC","RURAL LONG"," - transformer (pole mounted)","three phase","Started by lightning striking a distribution system or a part of a distribution system ","within area delineated on plan LEGL./16-354",4.5999999999999996,"Moderate",{"$f":"IF(Q103=\"\",\"\",IF(C103>=DATE(2022,9,1),IF(Q103=\"No rating\",0.05,IF(Q103=\"Moderate\",0.334,IF(Q103=\"High\",0.678,IF(Q103=\"Extreme\",2.272,4.754)))),0.05))","v":0.33400000000000002},{"$f":"IF(OR(P103=\"\",R103=\"\"),\"\",IF(AND(O103=\"within electric line construction area\",Q103=\"No rating\"),1,P103*R103))","v":1.5364},"E0100626","20240104SPN_01","Lightening hit the pole mounted transformer and caused it to catch fire as well as causing a 1 meter ground fire. Oil also spilled from the transformer.",null,null," - communications network assets"]
[17,67,"2024-01-02","22:14:59",-37.790793999999998,145.509885,"299 Douthie Rd, Seville East VIC 3139, Australia",1003681,"WYK12","12.7kV AC (SWER)","RURAL SHORT"," - fuse (boric acid)","single wire earth return (SWER)","Started by lightning striking a distribution system or a part of a distribution system ","within area delineated on plan LEGL./16-354",4.5999999999999996,"Moderate",0.33400000000000002,1.5364,"E0100627","20240104SPN_02","Crew found a candled BA fuse that failed to eject that was hit by lightening. No ground fire.",null,null," - communications site infrastructure"]
[17,68,"2024-01-03","16:43:41",-36.826203,146.00958600000001,"3299 Midland Hwy, Lima South VIC 3673, Australia",3911039,"BN23","22kV AC","RURAL LONG"," - fuse (boric acid)","single phase","Started in or originated from a distribution system","within area delineated on plan LEGL./16-354",4.5999999999999996,"Moderate",0.33400000000000002,1.5364,"E0100681","20240109SPN_03","Crew arrived on site and found a candled BA fuse. No ground fire.",null,null," - field devices"]
[17,69,"2024-01-04","10:02:25",-36.700843999999996,145.65361300000001,"811 Balmattum N Rd, Balmattum VIC 3666, Australia",3902290,"BN11","22kV AC","RURAL LONG"," - fuse (boric acid)","three phase","Started in or originated from a distribution system","within area delineated on plan LEGL./16-354",4.5999999999999996,"Moderate",0.33400000000000002,1.5364,"E0100636","20240104SPN_03","A failed 22KV O/H conductor dropped to the ground and caused a BA fuse to operate and candle as well as a 500 meter square ground fire.",null,null," - local network wiring assets"]
[17,70,"2024-01-04","12:57:19",-37.107714999999999,146.26548700000001,"1915 Mt Buller Rd, Merrijig VIC 3723, Australia",3917307,"MJG11","22kV AC","RURAL SHORT"," - fuse (boric acid)","three phase","Started in or originated from a distribution system","HBRA only",1,"Moderate",0.33400000000000002,0.33400000000000002,"E0100642","20240108SPN_02","Crew arrived on site and found a candled BA fuse. No ground fire.",null,null," - master station assets"]
[17,71,"2024-01-05","11:33:33",-38.456183000000003,145.70062999999999,"845 Bena-Kongwak Rd, Bena VIC 3946, Australia",2008545,"LGA23","22kV AC","RURAL LONG"," - fuse (boric acid)","single phase","Started in or originated from a distribution system","HBRA only",1,"No rating",0.05,0.05,"E0100646","20240108SPN_03","Crew arrived and found a candled BA fuse. No ground fire.",null,null," - neutral earthing resistor"]
[17,72,"2024-01-05","13:35:51",-36.791871,145.626499,"659 Euroa-Strathbogie Rd, Euroa VIC 3666, Australia",3907479,"BN11","22kV AC","RURAL LONG"," - fuse (boric acid)","single phase","Started in or originated from a distribution system","within area delineated on plan LEGL./16-354",4.5999999999999996,"Moderate",0.33400000000000002,1.5364,"E0100649","20240201SPN_01","The crew arrived and found a candled BA fuse. No ground fire.",null,null," - oil-filled circuit recloser (OCR)"]
[17,73,"2024-01-05","17:53:56",-37.710301999999999,145.12841599999999,"108 State Route 48, Montmorency VIC 3094, Australia",931945,"ELM34","Low voltage AC (<1kV)","URBAN"," - connection box","three phase","Started in or originated from a distribution system","LBRA only",0.2,"Moderate",0.33400000000000002,6.6800000000000012E-2,"E0100648","20240109SPN_04","Crew arrived and found a LV krone box had melted and caught fire. No ground fire.",null,null," - rapid earth fault current limiter (REFCL)"]
[17,74,"2024-01-06","13:16:57",-37.991532999999997,146.800693,"732 Riverview Rd, Heyfield VIC 3858, Australia",2507971,"MFA34","Low voltage AC (<1kV)","RURAL SHORT"," - field devices","single phase","Started in or originated from a distribution system","LBRA only",0.2,"No rating",0.05,1.0000000000000002E-2,"E0100652","20240108SPN_04","The electricity meter at 732 RIVERVIEW RD HEYFIELD had caught fire. The meter was only replaced the day before due to water damage. The meter is mounted on a meter surround on an external wall of a timber clad house and is undercover. The service fuse operated. ",null,null," - surge diverter"]
[17,75,"2024-01-06","19:06:39",-37.654232999999998,145.04808299999999,"2 Lamina Ave, Mill Park VIC 3082, Australia",928959,"EPG34","Low voltage AC (<1kV)","URBAN"," - connection box","three phase","Started in or originated from a distribution system","LBRA only",0.2,"Moderate",0.33400000000000002,6.6800000000000012E-2,"E0100792","20240117SPN_02","The crew attended and found a L/V krone box had caught fire. No ground fire.",null,null," - voltage regulator"]
[17,76,"2024-01-08","10:52:56",-37.921593000000001,145.50167999999999,"151 Woori Yallock Rd, Cockatoo VIC 3781, Australia",420514,"BGE22","22kV AC","RURAL SHORT"," - fuse (boric acid)","three phase","Started in or originated from a distribution system","within area delineated on plan LEGL./16-354",4.5999999999999996,"No rating",0.05,0.22999999999999998,"E0100680","20240109SPN_02","Crew arrived on site and found a candled BA fuse. No ground fire.",null,null,"Public lighting"]
[17,77,"2024-01-08","12:43:55",-37.314894000000002,145.060754,"216 Clonbinane Rd, Clonbinane VIC 3658, Australia",4701407,"SMR22","12.7kV AC (SWER)","RURAL LONG"," - fuse (boric acid)","single wire earth return (SWER)","Started in or originated from a distribution system","within electric line construction area",19.8,"Moderate",0.33400000000000002,6.6132000000000009,"E0100675","20240108SPN_06","Crew arrived and found a candled BA fuse. No ground fire",null,null," - brackets (major road)"]
[17,78,"2024-01-08","19:37:47",-38.494723999999998,145.61464799999999,"700 Koetsveldt Rd, Ryanston VIC 3992, Australia",2809282,"WGI34","22kV AC","RURAL LONG"," - fuse (boric acid)","single phase","Started in or originated from a distribution system","within area delineated on plan LEGL./16-354",4.5999999999999996,"No rating",0.05,0.22999999999999998,"E0100678","20240109SPN_01","Crew arrived on site and found a candled BA fuse. No ground fire.",null,null," - brackets (minor road)"]
[17,79,"2024-01-09","14:40:10",-37.888281999999997,145.453371,"31 Patons Rd, Emerald VIC 3782, Australia",1315983,"LDL13","12.7kV AC (SWER)","RURAL SHORT"," - fuse (boric acid)","single wire earth return (SWER)","Started in or originated from a distribution system","within area delineated on plan LEGL./16-354",4.5999999999999996,"No rating",0.05,0.22999999999999998,"E0100697","20240110SPN_01","Crew arrived and found a candled BA fuse. No ground fire.",null,null," - lamps (major road)"]
[17,80,"2024-01-09","16:29:31",-37.891052999999999,145.28714099999999,"12 Parkview Dr, Ferntree Gully VIC 3156, Australia",1311625,"FGY32","22kV AC","URBAN"," - overhead conductor (bare; aluminium core steel reinforced)","three phase","Started by any tree, or part of a tree, falling upon or coming into contact with a distribution system","LBRA only",0.2,"No rating",0.05,1.0000000000000002E-2,"E0100699","20240110SPN_02","A customers tree branch failed and fell onto the 22KV open wire conductors causing the middle phase tie to break and the conductor fell onto the cross-arm and the pole to catch fire. The feeder operated and no ground fire.",null,null," - lamps (minor road)"]
[17,81,"2024-01-14","12:28:02",-38.004303,146.91332800000001,"184 Fairchilds Ln, Tinamba VIC 3859, Australia",2511445,"MFA34","22kV AC","RURAL SHORT"," - fuse (boric acid)","single phase","Started in or originated from a distribution system","LBRA only",0.2,"No rating",0.05,1.0000000000000002E-2,"E0100740","20240115SPN_03","The crew found a BA fuse had candled. No ground fire.",null,null," - luminaires (major road)"]
[17,82,"2024-01-14","20:21:37",-36.398530999999998,146.88101499999999,"103 Dederang Rd, Bruarong VIC 3749, Australia",5202026,"WOTS11","12.7kV AC (SWER)","RURAL LONG"," - fuse (boric acid)","single wire earth return (SWER)","Started in or originated from a distribution system","within electric line construction area",19.8,"Moderate",0.33400000000000002,6.6132000000000009,"E0100741","20240115SPN_04","Crew arrived and found 1 blown fuse and 1 candled fuse.",null,null," - luminaires (minor road)"]
[17,83,"2024-01-16","22:41:12",-37.898212000000001,145.30013199999999,"44 Willow Rd, Upper Ferntree Gully VIC 3156, Australia",1313803,"FGY33","22kV AC","URBAN"," - dropper / bridge","three phase","Started in or originated from a distribution system","LBRA only",0.2,"Moderate",0.33400000000000002,6.6800000000000012E-2,"E0100791","20240117SPN_01","A 22KV HV dropper lead connection has failed causing tracking and the timber pole to catch fire. No ground fire.",null,null," - poles / columns (major road)"]
[17,84,"2024-01-18","14:10:01",-37.809885999999999,147.484554,"1005 Bairnsdale-Dargo Rd, Hillside VIC 3875, Australia",1607520,"BDL44","Low voltage AC (<1kV)","RURAL LONG"," - overhead conductor (ABC)","single phase","Started by any other thing forming part of or coming into contact with a distribution system","within area delineated on plan LEGL./16-354",4.5999999999999996,"Moderate",0.33400000000000002,1.5364,"E0100835","20240119SPN_01","A truck has pulled down a LV service cable at #930 Bairnsdale - Dargo Rd causing damage to the POA and the cable fell to the ground causing a 60 meter square ground fire.",null,null," - poles / columns (minor road)"]
[17,85,"2024-01-23","15:21:02",-37.71808,145.45146,"22 Medhurst Rd, Gruyere VIC 3770, Australia",1032839,"LDL23","12.7kV AC (SWER)","RURAL LONG"," - surge diverter","single wire earth return (SWER)","Started in or originated from a distribution system","within area delineated on plan LEGL./16-354",4.5999999999999996,"Moderate",0.33400000000000002,1.5364,"E0100930","20240124SPN_01","THERE WAS A BLOWN LA THAT HAS CAUSED A SWER BA HV FUSE AT S/S POLE 1032839 TO BLOW.\nCAUSING A 20 x 30 METER GRASS FIRE, BRIGADE AND POLICE ATTENDED.",null,null,"Other "]
[17,86,"2024-01-30","10:53:28",-38.59552,146.618312,"668 Pound Rd W, Yarram VIC 3971, Australia",2608244,"FTR12","22kV AC","RURAL LONG"," - fuse (boric acid)","single phase","Started in or originated from a distribution system","HBRA only",1,"Moderate",0.33400000000000002,0.33400000000000002,"E0100992","20240131SPN_01","A 22KV BA fuse failed to eject and candled. No ground fire.",null,null," - connection box"]
[17,87,"2024-01-31","06:54:37",-37.068613999999997,145.061993,"196 Ashes Bridge Rd, Tallarook VIC 3659, Australia",4709793,"SMR23","22kV AC","RURAL SHORT"," - fuse (EDO fuse)","single phase","Started in or originated from a distribution system","within area delineated on plan LEGL./16-354",4.5999999999999996,"Moderate",0.33400000000000002,1.5364,"E0101005","20240131SPN_02","Crew arrived on site and found a candled EDO fuse. No ground fire.",null,null," - earth / earthing"]
[17,88,"2024-02-01","08:23:35",-37.924681999999997,146.96115699999999,"488 Maffra-Newry Rd, Maffra VIC 3860, Australia",2514595,"MFA31","22kV AC","RURAL SHORT"," - fuse (EDO fuse)","single phase","Started in or originated from a distribution system","HBRA only",1,"Moderate",0.33400000000000002,0.33400000000000002,"E0101058","20240201SPN_02","Crew arrived and found a candled EDO fuse. No ground fire."]
[17,89,"2024-02-02","16:41:00",-38.529187,145.33020400000001,"54 Princeton Ave, Cape Woolamai VIC 3925, Australia",2810405,"WGI32","Low voltage AC (<1kV)","RURAL SHORT"," - switch (disconnector/isolator)","three phase","Started by any other thing forming part of or coming into contact with a distribution system","LBRA only",0.2,"Moderate",0.33400000000000002,6.6800000000000012E-2,"E0101081","20240228SPN_03","This was originally reported as a HSE incident in which I come across while looking at overdue Enablon investigations.\nA Large area of pampas grass allowed to grow around base of substation pole. This prevented operator from getting in appropriate position to close krone box. In attempting to close krone box from edge of pampas grass the blade was not closed with sufficient force which caused an arc and a spark to fall into pampas grass. A small fire resulted which had to be put out with nap sack, fire was approx 30cm2."]
[17,90,"2024-02-04","21:29:00",-37.706034000000002,145.07875999999999,"47 Princes St, Watsonia VIC 3087, Australia",904725,"WT13","Low voltage AC (<1kV)","URBAN"," - dropper / bridge","three phase","Started in or originated from a distribution system","LBRA only",0.2,"High",0.67800000000000005,0.13560000000000003,"E0101632","20240301SPN_03","An insulated LV bridge has overheated and the insulation has caught fire at the pole end. No ground fire. LV fuse operated.",null,null,"Extra low voltage AC (<50V)"]
[17,91,"2024-02-07","16:53:31",-38.025644,146.681105,"107 Foxs Rd, Cowwarr VIC 3857, Australia",2605029,"TGN31","22kV AC","RURAL LONG"," - fuse (boric acid)","single phase","Started in or originated from a distribution system","HBRA only",1,"Moderate",0.33400000000000002,0.33400000000000002,"E0101130","20240209SPN_01","The crew arrived on site and found a candled BA fuse. No ground fire.",null,null,"Low voltage AC (<1kV)"]
[17,92,"2024-02-09","15:24:59",-36.043230999999999,146.65678700000001,"787 Barnawartha Rd, Browns Plains VIC 3685, Australia",5209130,"BWA23","22kV AC","RURAL SHORT"," - overhead conductor (bare; steel)","single phase","Started in or originated from a distribution system","within area delineated on plan LEGL./16-354",4.5999999999999996,"Moderate",0.33400000000000002,1.5364,"E0101157","20240212SPN_01","A strand on a bare O/H 22kv conductor has snapped causing the strand to unravel and touch the adjacent phase. 2 X BA fuses operated and there was a 8000 meter square ground fire causing damage to a fence.",null,null,"2.2kV AC"]
[17,93,"2024-02-12","10:22:18",-37.948796999999999,147.08843899999999,"185 Briagolong Rd, Stratford VIC 3862, Australia",2511935,"MFA21","22kV AC","RURAL LONG"," - fuse (boric acid)","single phase","Started in or originated from a distribution system","HBRA only",1,"Moderate",0.33400000000000002,0.33400000000000002,"E0101271","20240212SPN_04","The crew arrived on site and found a candled BA fuse which caused a 1.5 meter square ground fire.",null,null,"6.6kV AC"]
[17,94,"2024-02-13","03:10:41",-37.626493000000004,145.27910199999999,"20 Spanish Gully Rd, Smiths Gully VIC 3760, Australia",931424,"DRN23","12.7kV AC (SWER)","RURAL LONG"," - overhead conductor (insulated)","single wire earth return (SWER)","Started in or originated from a distribution system","HBRA only",1,"Extreme",2.2719999999999998,2.2719999999999998,"E0101286","20240213SPN_01","A SWER cable head from O/H to U/G has failed causing the conductor to drop to the ground causing the BA fuse to operate and a 3 meter square ground fire.",null,null,"11kV AC"]
[17,95,"2024-02-13","16:13:43",-38.027515000000001,145.37889699999999,"205 C406, Beaconsfield VIC 3807, Australia",502827,"BWN14","22kV AC","RURAL SHORT"," - overhead conductor (bare; aluminium core steel reinforced)","three phase","Started in or originated from a distribution system","HBRA only",1,"Extreme",2.2719999999999998,2.2719999999999998,"E0101633","20240301SPN_05","Crew arrived and found both bare HV O/H and LV ABC conductors on the ground that caused a 1 meter square ground fire. Protection operated and the cause was a fallen tree due to extreme weather.",null,null,"12.7kV AC (SWER)"]
[17,96,"2024-02-13","16:42:08",-38.645826999999997,146.38310100000001,"175 Agnes River Rd, Hazel Park VIC 3966, Australia",2013265,"FTR12","22kV AC","RURAL LONG"," - overhead conductor (bare; all aluminium conductor)","three phase","Started by any tree, or part of a tree, falling upon or coming into contact with a distribution system","HBRA only",1,"High",0.67800000000000005,0.67800000000000005,"E0101635","20240304SPN_01","There was a Small 1 meter square ground Fire around a tree at LIS: 2013265  after the Tree fell and took down HV 22KV conductors at LIS: 0213265. Protection operated.",null,null,"22kV AC"]
[17,97,"2024-02-14","05:40:02",-37.725518000000001,145.76265900000001,"Whitegum Dr/Woods Point Rd, East Warburton VIC 3799, Australia",1408503,"WYK13","22kV AC","RURAL SHORT"," - fuse (boric acid)","three phase","Started in or originated from a distribution system","within area delineated on plan LEGL./16-354",4.5999999999999996,"Moderate",0.33400000000000002,1.5364,"E0101638","20240304SPN_02","A BA fuse failed to eject and candled. No ground fire.",null,null,"33kV AC"]
[17,98,"2024-02-14","13:59:12",-36.142010999999997,147.07840400000001,"851 Lake Rd, Bethanga VIC 3691, Australia",5213801,"WOTS13","12.7kV AC (SWER)","RURAL LONG"," - fuse (boric acid)","single wire earth return (SWER)","Started in or originated from a distribution system","within area delineated on plan LEGL./16-354",4.5999999999999996,"Moderate",0.33400000000000002,1.5364,"E0101321","20240215SPN_01","A BA SWER fuse failed to eject and candled causing a 12140 meter square ground fire. Feeder operated.",null,null,"66kV AC"]
[17,99,"2024-02-15","03:53:35",-37.221705999999998,145.651445,"Crystal Creek Rd, Whanregarwen VIC 3714, Australia",4712442,"RUBA12","12.7kV AC (SWER)","RURAL LONG"," - overhead conductor (bare; steel)","single wire earth return (SWER)","Started in or originated from a distribution system","within area delineated on plan LEGL./16-354",4.5999999999999996,"Moderate",0.33400000000000002,1.5364,"E0101346","20240216SPN_01","Crew  found a SWER conductor had broke and dropped to the ground and fell to the ground causing the feeder to trip and a 2 meter square ground fire.",null,null,"132kV AC"]
[17,100,"2024-02-15","20:53:47",-36.457023,145.91020599999999,"A300, Broken Creek VIC 3673, Australia",3910597,"BN24","22kV AC","RURAL LONG"," - fuse (boric acid)","single phase","Started in or originated from a distribution system","within area delineated on plan LEGL./16-354",4.5999999999999996,"Moderate",0.33400000000000002,1.5364,"E0101349","20240216SPN_03","Crew arrived and found a candled BA fuse had caused a 2000 meter square ground fire.",null,null,"220kV AC"]
[17,101,"2024-02-16","04:59:00",-38.091687,146.20319900000001,"888 Moe-Willow Grove Rd, Willow Grove VIC 3825, Australia",2200756,"MOE13","22kV AC","RURAL SHORT"," - overhead conductor (bare; steel)","three phase","Started in or originated from a distribution system","within area delineated on plan LEGL./16-354",4.5999999999999996,"Moderate",0.33400000000000002,1.5364,"E0101640","20240304SPN_03","A 22KV O/H bare conductor has dropped onto a tree causing a 6 meter square ground fire. Protection operated.",null,null,"330kV AC"]
[17,102,"2024-02-16","06:12:50",-36.991675999999998,145.634578,"179 Shaws Rd, Gobur VIC 3719, Australia",4710146,"RUBA12","12.7kV AC (SWER)","RURAL LONG"," - fuse (boric acid)","single wire earth return (SWER)","Started in or originated from a distribution system","within area delineated on plan LEGL./16-354",4.5999999999999996,"Moderate",0.33400000000000002,1.5364,"E0101359","20240223SPN_02","A BA Fuse has failed to eject and candled. No ground fire.",null,null,"500kV AC"]
[{"$f":"COUNTA(C140:O140,Q140,T140:V140)","v":17},103,"2024-02-16","06:29:24",-37.023615999999997,145.92547200000001,"Great Victorian Rail Trl, Maindample VIC 3723, Australia",3913511,"MSD2","22kV AC","RURAL LONG"," - fuse (boric acid)","single phase","Started in or originated from a distribution system","within area delineated on plan LEGL./16-354",{"$f":"IF(O140=\"\",\"\",IF(O140=\"LBRA only\",0.2,IF(O140=\"HBRA only\",1,IF(O140=\"within electric line construction area\",19.8,IF(O140=\"within area delineated on plan LEGL./16-354\",4.6,\"\")))))","v":4.5999999999999996},"Moderate",0.33400000000000002,1.5364,"E0101365","20240219SPN_02","Crew arrived and found a candled BA fuse that failed to eject. No ground fire.",null,null,"Extra low voltage DC (<120V ripple free)"]
[17,104,"2024-02-16","10:54:33",-37.914380999999999,145.436305,"510 Kallista-Emerald Rd, Kallista VIC 3791, Australia",415376,"BGE22","12.7kV AC (SWER)","RURAL SHORT"," - overhead conductor (bare; steel)","single wire earth return (SWER)","Started by any tree, or part of a tree, falling upon or coming into contact with a distribution system","within area delineated on plan LEGL./16-354",4.5999999999999996,"Moderate",0.33400000000000002,1.5364,"E0101425","20240222SPN_03","A tree has brought down a SWER line causing a 400 meter square ground fire. Protection operated.",null,null,"Low voltage DC (<1.5kV)"]
[17,105,"2024-02-18","01:56:00",-38.495047999999997,146.66745599999999,"Bulga Park Rd, Calrossie VIC 3971, Australia",2623593,"FTR12","22kV AC","RURAL LONG"," - fuse (boric acid)","single phase","Started in or originated from a distribution system","HBRA only",1,"Moderate",0.33400000000000002,0.33400000000000002,"E0101383","20240219SPN_04","Crew arrived on site and found a candled BA fuse. No ground fire.",null,null,"600V DC"]
[17,106,"2024-02-20","12:59:00",-38.593465000000002,145.60865100000001,"149 Korumburra Rd, North Wonthaggi VIC 3995, Australia",2601725976,"WGI23","22kV AC","RURAL SHORT"," - switch (disconnector/isolator)","three phase","Started in or originated from a distribution system","within area delineated on plan LEGL./16-354",4.5999999999999996,"Moderate",0.33400000000000002,1.5364,"E0101641","20240304SPN_04","A 22KV gas switch has caught fire. No ground fire. Protection did not operate.",null,null,"1500V DC"]
[17,107,"2024-02-21","07:10:16",-38.324711999999998,145.93079,"700 Ferndale Rd, Ferndale VIC 3821, Australia",2004486,"LGA24","12.7kV AC (SWER)","RURAL SHORT"," - fuse (EDO fuse)","single wire earth return (SWER)","Started in or originated from a distribution system","HBRA only",1,"Moderate",0.33400000000000002,0.33400000000000002,"E0101643","20240304SPN_05","Crew arrived and found a candled EDO fuse that failed to eject. No ground fire.",null,null,"Earthing cable"]
[17,108,"2024-02-22","01:11:45",-37.645180000000003,145.05146999999999,"8 Meadow Glen Dr, Epping VIC 3076, Australia",916919,"DRN22","22kV AC","RURAL SHORT"," - fuse (boric acid)","three phase","Started in or originated from a distribution system","LBRA only",0.2,"Extreme",2.2719999999999998,0.45439999999999997,"E0101427","20240222SPN_04","A BA fuse failed to eject and candled. No ground fire."]
[17,109,"2024-02-22","19:31:29",-37.917462999999998,145.45014,"2 Charman Ave, Emerald VIC 3782, Australia",5826064,"BGE22","22kV AC","RURAL SHORT"," - pole (wood)","three phase","Started by lightning striking a distribution system or a part of a distribution system ","LBRA only",0.2,"Extreme",2.2719999999999998,0.45439999999999997,"E0101447","20240223SPN_01","During the storm event lightening has struck the top of a timber pole causing it to catch fire. Protection operated and there was no ground fire."]
[17,110,"2024-02-23","05:50:51",-38.408034999999998,146.09794199999999,"210 St Ellens Rd, Mirboo North VIC 3871, Australia",2021272,"LGA13","12.7kV AC (SWER)","RURAL LONG"," - fuse (boric acid)","single wire earth return (SWER)","Started in or originated from a distribution system","HBRA only",1,"High",0.67800000000000005,0.67800000000000005,"E0101462","20240223SPN_03","The crew arrived and found a BA Fuse has failed to eject and candled.\nThe crew patrolled the lines and replaced the fuse.\n",null,null,"single wire earth return (SWER)"]
[17,111,"2024-02-25","10:46:27",-37.998032000000002,146.941881,"Boggy Creek Rd, Riverslea VIC 3860, Australia",2508466,"MFA34","66kV AC","RURAL SHORT"," - overhead conductor (bare; aluminium core steel reinforced)","three phase","Started by any person, bird, reptile or other animal coming into contact with a distribution system","LBRA only",0.2,"Moderate",0.33400000000000002,6.6800000000000012E-2,"E0101474","20240226SPN_01","A bird has hit the 66KV and 22KV lines causing the feeder to trip and a 220 meter square ground fire.",null,null,"single phase"]
[17,112,"2024-02-26","19:09:14",-37.887552999999997,145.28167400000001,"29 Kevin Ave, Ferntree Gully VIC 3156, Australia",1311784,"FGY32","Low voltage AC (<1kV)","URBAN"," - switch (disconnector/isolator)","single phase","Started in or originated from a distribution system","LBRA only",0.2,"Moderate",0.33400000000000002,6.6800000000000012E-2,"E0101542","20240227SPN_01","A LV fused isolator started arcing and sparking causing a 2 meter ground fire. Protection did not operate.",null,null,"two phase"]
[17,113,"2024-02-27","19:58:25",-37.704751999999999,145.16034300000001,"66 Beard St, Eltham VIC 3095, Australia",918697,"ELM25","Low voltage AC (<1kV)","URBAN"," - connection box","three phase","Started in or originated from a distribution system","LBRA only",0.2,"Moderate",0.33400000000000002,6.6800000000000012E-2,"E0101566","20240228SPN_01","A LV bus isolator has overheated dropping molten particles to the ground causing a 0.5 meter square ground fire that had self extingushed.",null,null,"three phase"]
[17,114,"2024-02-29","11:22:59",-38.420566999999998,145.751893,"120 Bena-Kongwak Rd, Bena VIC 3946, Australia",2008048,"LGA23","22kV AC","RURAL LONG"," - dropper / bridge","three phase","Started in or originated from a distribution system","HBRA only",1,"Moderate",0.33400000000000002,0.33400000000000002,"E0101630","20240301SPN_02","An 22KV ILJN isolator dropper lead has failed caught fire, causing a 6 meter square ground fire. Protection operated."]
[17,115,"2024-03-01","18:18:34",-37.926062000000002,145.43238500000001,"5 Pinnocks Rd, Emerald VIC 3782, Australia",419197,"BGE22","22kV AC","RURAL SHORT"," - overhead conductor (bare; aluminium core steel reinforced)","three phase","Started by any tree, or part of a tree, falling upon or coming into contact with a distribution system","within area delineated on plan LEGL./16-354",4.5999999999999996,"Moderate",0.33400000000000002,1.5364,"E0101978","20240318SPN_01","A tree branch has blown onto the 22KV open wire conductors causing it to burn and blow the BA fuse on the blue phase. No ground fire."]
[17,116,"2024-03-03","08:46:25",-37.639395999999998,145.24813499999999,"385 Long Gully Rd, Panton Hill VIC 3759, Australia",920325,"DRN23","22kV AC","RURAL LONG"," - fuse (boric acid)","single phase","Started in or originated from a distribution system","HBRA only",1,"Moderate",0.33400000000000002,0.33400000000000002,"E0101979","20240318SPN_02","The crew found a candled BA fuse. No ground fire.",null,null,"Negligible: no ground fire"]
[17,117,"2024-03-03","11:05:29",-38.314816,145.87651099999999,"109 Mountain View-McDonalds Track, Mountain View VIC 3988, Australia",2005014,"LGA24","22kV AC","RURAL SHORT"," - fuse (boric acid)","single phase","Started in or originated from a distribution system","HBRA only",1,"Moderate",0.33400000000000002,0.33400000000000002,"E0101977","20240315SPN_02","The crew had found a candled BA fuse. No ground fire.",null,null,"Localised: less than 10 sq.m"]
[17,118,"2024-03-03","13:38:52",-38.455809000000002,147.02745200000001,"Giffard Rd, Darriman VIC 3851, Australia",2504292,"SLE31","12.7kV AC (SWER)","RURAL LONG"," - insulators","single wire earth return (SWER)","Started in or originated from a distribution system","within area delineated on plan LEGL./16-354",4.5999999999999996,"Moderate",0.33400000000000002,1.5364,"E0101651","20240304SPN_07","The top of a SWER sub pole has caught fire. CFA attended and extinguished the fire. No ground fire. Protection operated.",null,null,"Small: 10 - 1000 aq.m"]
[17,119,"2024-03-03","22:27:05",-37.825636000000003,145.487866,"1217 Macclesfield Rd, Yellingbo VIC 3139, Australia",1005585,"WYK12","12.7kV AC (SWER)","RURAL SHORT"," - overhead conductor (bare; steel)","single wire earth return (SWER)","Started by any tree, or part of a tree, falling upon or coming into contact with a distribution system","within area delineated on plan LEGL./16-354",4.5999999999999996,"Moderate",0.33400000000000002,1.5364,"E0101923","20240308SPN_01","A tree has fallen on an O/H SWER conductor pinning it to the ground causing part of the tree branch to catch fire. ACR operated.",null,null,"Medium: 1000 sq.m - 10 ha"]
[17,120,"2024-03-06","07:42:39",-37.577826000000002,145.290479,"2155 Heidelberg-Kinglake Rd, St Andrews VIC 3761, Australia",918302,"DRN23","12.7kV AC (SWER)","RURAL LONG"," - fuse (boric acid)","single wire earth return (SWER)","Started in or originated from a distribution system","HBRA only",1,"High",0.67800000000000005,0.67800000000000005,"E0101699","20240306SPN_02","Crew arrived and found a candled BA fuse, No ground fire.",null,null,"Large: more than 10 ha"]
[17,121,"2024-03-06","12:22:09",-37.772803000000003,145.35117700000001,"86 Lakeview Dr, Lilydale VIC 3140, Australia",1032532,"LDL24","Low voltage AC (<1kV)","URBAN"," - switch (disconnector/isolator)","three phase","Started in or originated from a distribution system","LBRA only",0.2,"High",0.67800000000000005,0.13560000000000003,"E0101901","20240307SPN_01","An LV pillar has caught fire causing a 1.5 meter square ground fire. Protection did not operate."]
[17,122,"2024-03-09","23:08:18",-37.628708000000003,145.16917799999999,"175 Haleys Gully Rd, Hurstbridge VIC 3099, Australia",925305,"DRN23","22kV AC","RURAL LONG"," - insulators","three phase","Started by any person, bird, reptile or other animal coming into contact with a distribution system","HBRA only",1,"Extreme",2.2719999999999998,2.2719999999999998,"E0102066","20240318SPN_04","A POSSUM HAS COME INTO CONTACT WITH A GLASS 22KV INSULATOR CAUSING IT TO FLASH OVER AND CAUSE A SMALL 1 METER SQUARE GROUND FIRE AT THE BASE OF THE POLE. "]
[17,123,"2024-03-09","23:33:47",-38.286839000000001,146.178899,"17 Railway Rd, Thorpdale VIC 3835, Australia",2627791,"MOE12","Low voltage AC (<1kV)","RURAL SHORT"," - overhead service conductor (residential)","three phase","Started in or originated from a distribution system","within area delineated on plan LEGL./16-354",4.5999999999999996,"High",0.67800000000000005,3.1187999999999998,"E0101976","20240315SPN_01","A grey twisted O/H cable Between Lis 2627791-2627792 has dropped to the ground and caused a 0.5 meter square ground fire. LV protection did not operate.",null,null,"Started in or originated from a distribution system"]
[17,124,"2024-03-11","18:19:23",-37.863283000000003,145.28801100000001,"5 Floriston Rd, Boronia VIC 3155, Australia",1200503,"BWR34","Low voltage AC (<1kV)","URBAN"," - overhead conductor (bare; all aluminium conductor)","single phase","Started in or originated from a distribution system","LBRA only",0.2,"High",0.67800000000000005,0.13560000000000003,"E0101989","20240318SPN_03","A LV O/H conductor has fallen to the ground and caused a 5 meter square ground fire. Protection did not operate. Fire crew extinguished the fire.",null,null,"Started by any tree, or part of a tree, falling upon or coming into contact with a distribution system"]
[17,125,"2024-03-13","10:22:19",-38.096791000000003,145.28010599999999,"8 Highview Ave, Cranbourne VIC 3977, Australia",505804,"CRE32","Low voltage AC (<1kV)","URBAN"," - overhead service conductor (residential)","three phase","Started by any tree, or part of a tree, falling upon or coming into contact with a distribution system","LBRA only",0.2,"Moderate",0.33400000000000002,6.6800000000000012E-2,"E0102061","20240320SPN_04","A customers tree branch has gradually rubbed through the customers grey twisted O/H service cable causing the insulation to break down and catch fire. No ground or tree fire.",null,null,"Started by any person, bird, reptile or other animal coming into contact with a distribution system"]
[17,126,"2024-03-15","09:13:14",-38.693831000000003,145.80709100000001,"30 George St, Venus Bay VIC 3956, Australia",2806097,"WGI24","Low voltage AC (<1kV)","RURAL SHORT"," - overhead service conductor (residential)","single phase","Started in or originated from a distribution system","within area delineated on plan LEGL./16-354",4.5999999999999996,"Moderate",0.33400000000000002,1.5364,"E0101995","20240318SPN_05","A grey twisted service cable to 24 George St Venus Bay has dropped to the ground causing a 0.3 meter ground fire. Protection did not operate.",null,null,"Started by lightning striking a distribution system or a part of a distribution system "]
[17,127,"2024-03-15","14:23:01",-38.672887000000003,145.78912600000001,"56 Condon Cres, Venus Bay VIC 3956, Australia",2806643,"WGI24","Low voltage AC (<1kV)","RURAL SHORT"," - overhead service conductor (residential)","three phase","Started by any tree, or part of a tree, falling upon or coming into contact with a distribution system","within area delineated on plan LEGL./16-354",4.5999999999999996,"Moderate",0.33400000000000002,1.5364,"E0102000","20240318SPN_06","A customers trees has rubbed through the insulation of the customers O/H service cable causing the tree to catch fire.",null,null,"Started by any other thing forming part of or coming into contact with a distribution system"]
[17,128,"2024-03-15","15:16:36",-38.670316999999997,146.26709,"632 Lower Franklin Rd, Bennison VIC 3960, Australia",2014822,"FTR23","22kV AC","RURAL LONG"," - overhead conductor (bare; all aluminium conductor)","three phase","Started by any tree, or part of a tree, falling upon or coming into contact with a distribution system","HBRA only",1,"Moderate",0.33400000000000002,0.33400000000000002,"E0102005","20240318SPN_07","A tree has caused a 22KV conductor to break, falling to the ground and causing a 200 meter square ground fire. The BA fuse operated.",null,null,"Otherwise started by a distribution system"]
[17,129,"2024-03-16","20:10:36",-38.631847999999998,145.73640900000001,"87 Bayview Ave, Inverloch VIC 3996, Australia",2809569,"WGI24","Low voltage AC (<1kV)","RURAL SHORT"," - overhead service conductor (residential)","three phase","Started in or originated from a distribution system","LBRA only",0.2,"Moderate",0.33400000000000002,6.6800000000000012E-2,"E0102059","20240320SPN_02","The grey twisted O/H service to 83 BAYVIEW AVE INVERLOCH 3996 had a tree on the customers property that has rubbed through the service insulation and caused the branch to start to catch fire."]
[17,130,"2024-03-20","05:47:33",-38.505040000000001,145.27331899999999,"28 The Esplanade, Sunderland Bay VIC 3922, Australia",2809004,"PHI11","22kV AC","RURAL SHORT"," - crossarm (wood)","three phase","Started in or originated from a distribution system","LBRA only",0.2,"High",{"$f":"IF(Q167=\"\",\"\",IF(C167>=DATE(2022,9,1),IF(Q167=\"No rating\",0.05,IF(Q167=\"Moderate\",0.334,IF(Q167=\"High\",0.678,IF(Q167=\"Extreme\",2.272,4.754)))),0.05))","v":0.67800000000000005},{"$f":"IF(OR(P167=\"\",R167=\"\"),\"\",IF(AND(O167=\"within electric line construction area\",Q167=\"No rating\"),1,P167*R167))","v":0.13560000000000003},"E0102060","20240320SPN_03","A 22KV HV crossarm has failed causing a 22KV conductor to drop to the ground causing a 25 meter square ground fire. The BA fuse operated."]
[17,131,"2024-03-24","13:38:33",-38.325699,146.45569599999999,"50 Stonehaven Rd, Hazelwood South VIC 3840, Australia",2614859,"MWL24","22kV AC","RURAL SHORT"," - fuse (boric acid)","single phase","Started in or originated from a distribution system","HBRA only",1,"Moderate",0.33400000000000002,0.33400000000000002,"E0102136","20240325SPN_02","Crew arrived and found a candled BA fuse. No ground fire.",null,null,1]
[17,132,"2024-03-25","23:35:32",-38.147682000000003,145.321551,"Moores Rd/Clyde-Five Ways Rd, Clyde VIC 3978, Australia",520834,"CLN11","22kV AC","RURAL SHORT"," - fuse (boric acid)","three phase","Started in or originated from a distribution system","HBRA only",1,"Moderate",0.33400000000000002,0.33400000000000002,"E0102163","20240326SPN_01","The crew arrived on site and found a candled BA fuse. No ground fire.",null,null,2]
[17,133,"2024-03-26","17:52:26",-38.519264,146.132409,"126 Farmers Rd, Dumbalk North VIC 3956, Australia",2011521,"LGA13","22kV AC","RURAL LONG"," - overhead conductor (bare; all aluminium conductor)","three phase","Started in or originated from a distribution system","HBRA only",1,"Moderate",0.33400000000000002,0.33400000000000002,"E0102368","20240405SPN_01","A 22KV O/H bare conductor has dropped to the ground and started a 50 meter square ground fire. Protection operated.",null,null,5]
[17,134,"2024-03-29","01:28:28",-37.640107999999998,145.23665800000001,"30 Church Rd, Panton Hill VIC 3759, Australia",920079,"DRN23","22kV AC","RURAL LONG"," - fuse (boric acid)","three phase","Started in or originated from a distribution system","HBRA only",1,"Moderate",0.33400000000000002,0.33400000000000002,"E0102217","20240402SPN_01","The crew had found a candled BA fuse. No ground fire.",null,null,10]
[17,135,"2024-03-29","22:14:22",-38.672058999999997,145.622119,"5 Wheeler Rd, Cape Paterson VIC 3995, Australia",2811174,"WGI22","Low voltage AC (<1kV)","RURAL SHORT"," - connection box","three phase","Started in or originated from a distribution system","within area delineated on plan LEGL./16-354",4.5999999999999996,"Moderate",0.33400000000000002,1.5364,"E0102219","20240402SPN_02","A FOLCB on the pole has caught fire and caused a 3 meter square ground fire.",null,null,15]
[17,136,"2024-04-02","09:25:40",-36.000971999999997,146.52149199999999,"Up River Rd, Gooramadda VIC 3685, Australia",5209349,"BWA23","22kV AC","RURAL SHORT"," - fuse (boric acid)","three phase","Started in or originated from a distribution system","within electric line construction area",19.8,"Moderate",0.33400000000000002,6.6132000000000009,"E0102258","20240403SPN_01","The crew found a candled BA fuse that failed to eject. No ground fire.",null,null,20]
[17,137,"2024-04-05","05:52:24",-38.110045,146.72588999999999,"32 Lower Cairnbrook Rd, Glengarry VIC 3854, Australia",2602487,"TGN31","22kV AC","RURAL LONG"," - fuse (boric acid)","single phase","Started in or originated from a distribution system","HBRA only",1,"No rating",0.05,0.05,"E0102374","20240405SPN_03","The crew attended site and found a candled BA fuse that failed to eject. No ground fire.",null,null,25]
[17,138,"2024-04-05","07:57:51",-37.344602999999999,145.34122500000001,"1259 Break Oday Rd, Flowerdale VIC 3717, Australia",4704052,"SMR14","12.7kV AC (SWER)","RURAL LONG"," - overhead conductor (bare; steel)","single wire earth return (SWER)","Started by any tree, or part of a tree, falling upon or coming into contact with a distribution system","within electric line construction area",19.8,"Moderate",0.33400000000000002,6.6132000000000009,"E0102375","20240405SPN_04","A tree has fallen on a O/H SWER wire causing a 1 meter square ground fire. Protection operated.",null,null,30]
[17,139,"2024-04-07","17:29:43",-38.046076999999997,147.58532199999999,"7 Marina Dr, Loch Sport VIC 3851, Australia",2506690,"SLE31","Low voltage AC (<1kV)","RURAL LONG"," - connection box","three phase","Started in or originated from a distribution system","LBRA only",0.2,"No rating",0.05,1.0000000000000002E-2,"E0102385","20240408SPN_01","The crew attended site and found the FOLCB on the pole had caught fire. No ground fire.",null,null,50]
[17,140,"2024-04-07","18:54:38",-38.136425000000003,145.86304999999999,"18 Hopetoun Rd, Drouin VIC 3818, Australia",2700706,"WGL13","22kV AC","RURAL SHORT"," - fuse (boric acid)","three phase","Started by any person, bird, reptile or other animal coming into contact with a distribution system","LBRA only",0.2,"No rating",0.05,1.0000000000000002E-2,"E0102386","20240408SPN_02","A bat was caught across the HV lines which caused the fuses to operate. One of the fuses was arcing and sparking and the crew could not operate the switch. No ground fire.",null,null,100]
[17,141,"2024-04-16","08:45:21",-38.507500999999998,145.97688299999999,"80 Timmins Estate Rd, Nerrena VIC 3953, Australia",2001160,"LGA14","Low voltage AC (<1kV)","RURAL LONG"," - connection box","single phase","Started in or originated from a distribution system","HBRA only",1,"No rating",0.05,0.05,"E0102623","20240417SPN_01","An LV FOLCB on the pole caught fire dropping molten parts to fall starting a small ground fire that caused damage to the customers boundary fence. "]
[17,142,"2024-04-20","23:36:06",-37.868180000000002,148.02737099999999,"10 McRae St, Lakes Entrance VIC 3909, Australia",1901703,"BDL41","Low voltage AC (<1kV)","RURAL LONG"," - connection box","three phase","Started in or originated from a distribution system","LBRA only",0.2,"No rating",0.05,1.0000000000000002E-2,"E0102668","20240422SPN_01","Faulty U/G consumer mains at # 7 McRae street has caused a fault which in turn made the FOLCB and cables on the pole to pit catch fire. No ground fire."]
[17,143,"2024-04-23","08:09:59",-37.931398999999999,145.34158600000001,"99 Mt Morton Rd, Belgrave South VIC 3160, Australia",1305580,"ERTS-BGE","66kV AC","#N/A"," - overhead conductor (bare; all aluminium conductor)","three phase","Started by any person, bird, reptile or other animal coming into contact with a distribution system","within area delineated on plan LEGL./16-354",4.5999999999999996,"High",0.67800000000000005,3.1187999999999998,"E0102697","20240423SPN_01","Crew attended for patrol after a successful reclose after tripping of SWBG509. At pole 1305580 a crow had contacted the 66kv bare O/H conductors causing a 1 meter square ground fire."]
[17,144,"2024-04-24","01:49:57",-37.673003999999999,145.030956,"200 Dalton Rd, Lalor VIC 3075, Australia",918506,"TT4","22kV AC","URBAN"," - overhead conductor (bare; aluminium core steel reinforced)","three phase","Started by any tree, or part of a tree, falling upon or coming into contact with a distribution system","LBRA only",0.2,"Moderate",0.33400000000000002,6.6800000000000012E-2,"E0102710","20240424SPN_01","A customers tree branch had failed falling on the 22KV bare O/H conductors and caught fire. There was no ground fire."]
[17,145,"2024-04-25","10:08:16",-36.334105999999998,146.34199100000001,"C314, North Wangaratta VIC 3678, Australia",5103059,"WN3","22kV AC","RURAL LONG"," - fuse (boric acid)","single phase","Started in or originated from a distribution system","within area delineated on plan LEGL./16-354",4.5999999999999996,"Moderate",0.33400000000000002,1.5364,"E0102728","20240426SPN_01","Crew had found a candled BA fuse that failed to eject causing a 120 meter square ground fire."]
[17,146,"2024-05-01","10:20:19",-38.271757000000001,146.238045,"1780 McDonalds Track, Narracan VIC 3824, Australia",2627577,"MOE23","12.7kV AC (SWER)","RURAL LONG"," - fuse (boric acid)","single wire earth return (SWER)","Started in or originated from a distribution system","within area delineated on plan LEGL./16-354",4.5999999999999996,"Moderate",0.33400000000000002,1.5364,"E0102782","20240501SPN_01","Crew arrived and found a candled SWER fuse. No ground fire."]
[17,147,"2024-05-02","17:02:12",-38.079734000000002,145.28050999999999,"9 Ballanee Grove, Cranbourne North VIC 3977, Australia",522876,"HPK21","22kV AC","URBAN"," - fuse (powder filled)","three phase","Started in or originated from a distribution system","LBRA only",0.2,"Moderate",0.33400000000000002,6.6800000000000012E-2,"E0102822","20240503SPN_01","The crew arrived on site and found a candled PF fuse. No ground fire."]
[17,148,"2024-05-08","20:17:10",-37.671191999999998,145.023031,"6 Vasey Ave, Lalor VIC 3075, Australia",916289,"TT4","Low voltage AC (<1kV)","URBAN"," - transformer (pole mounted)","three phase","Started in or originated from a distribution system","LBRA only",0.2,"No rating",0.05,1.0000000000000002E-2,"E0102874","20240509SPN_01","It has been reported that a pole mounted transformer had caught fire.  There was no ground fire and protection did not operate."]
[17,149,"2024-05-10","03:46:10",-37.890937999999998,145.30650800000001,"7 Hilltop Rd, Upper Ferntree Gully VIC 3156, Australia",1313962,"FGY34","22kV AC","URBAN"," - insulators","three phase","Started in or originated from a distribution system","within electric line construction area",19.8,"No rating",0.05,1,"E0103115","20240510SPN_01","A pole mounted transformer had a hot connection on a 22kv bushing and caught fire. No ground fire."]
[17,150,"2024-05-12","09:16:39",-37.865896999999997,148.02059600000001,"146 Princes Hwy, Lakes Entrance VIC 3909, Australia",1901843,"BDL41","Low voltage AC (<1kV)","RURAL LONG"," - connection box","three phase","Started in or originated from a distribution system","LBRA only",0.2,"No rating",0.05,1.0000000000000002E-2,"E0103139","20240513SPN_01","A pole mounted O/H to U/G FOLCB has caught fire and caused a 0.3 meter square ground fire. 1 LV fuse had blown."]
[17,151,"2024-05-21","16:06:27",-36.231622000000002,147.02171200000001,"283 Kiewa-Bonegilla Rd, Tangambalanga VIC 3691, Australia",5682013,"WOTS13","22kV AC","RURAL LONG"," - fuse (boric acid)","three phase","Started in or originated from a distribution system","within area delineated on plan LEGL./16-354",4.5999999999999996,"No rating",0.05,0.22999999999999998,"E0103234","20240522SPN_01","The BA fuse failed to eject and candled causing a 50 meter ground fire."]
[17,152,"2024-05-22","20:00:30",-37.903598000000002,145.32265899999999,"35 Highcliff Rd, Upwey VIC 3158, Australia",1302285,"FGY13","Low voltage AC (<1kV)","RURAL SHORT"," - connector / termination","three phase","Started in or originated from a distribution system","within area delineated on plan LEGL./16-354",4.5999999999999996,"No rating",0.05,0.22999999999999998,"E0103243","20240523SPN_01","A neutral IPC has failed causing the IPC and insulation to catch fire melting the insulation on the LV neutral and 2 phase conductors. No ground fire and protection did not operate."]
[17,153,"2024-05-23","06:42:40",-38.566366000000002,146.557266,"Petrajan, 1000 Gelliondale Rd, Jack River VIC 3971, Australia",2621221,"FTR12","Low voltage AC (<1kV)","RURAL LONG"," - connection box","three phase","Started in or originated from a distribution system","HBRA only",1,"No rating",0.05,0.05,"E0103247","20240523SPN_02","A krone box has overheated and melted causing a 600mm square ground fire. Protection did not operate."]
[17,154,"2024-05-26","06:20:50",-37.674211999999997,145.05871300000001,"29 Mimosa Rd, Mill Park VIC 3082, Australia",5644387,"SMG33","Low voltage AC (<1kV)","URBAN"," - LV pillar","three phase","Started in or originated from a distribution system","LBRA only",0.2,"No rating",0.05,1.0000000000000002E-2,"E0103285","20240527SPN_01","A LV parallel pillar has caught fire."]
[17,155,"2024-05-26","11:20:35",-38.475892000000002,145.94289800000001,"16 Peart St, Leongatha VIC 3953, Australia",2003577,"LGA22","Low voltage AC (<1kV)","RURAL SHORT"," - connection box","three phase","Started in or originated from a distribution system","LBRA only",0.2,"No rating",0.05,1.0000000000000002E-2,"E0103287","20240527SPN_02","A FOLCB on the pole had caught fire damaging the cables."]
[17,156,"2024-06-03","06:29:50",-38.003568999999999,147.06372400000001,"Lathams Rd, Airly VIC 3851, Australia",2504143,"SLE32","22kV AC","RURAL SHORT"," - fuse (boric acid)","single phase","Started in or originated from a distribution system","LBRA only",0.2,"No rating",0.05,1.0000000000000002E-2,"E0103445","20240604SPN_02","The crew arrived on site and found a candled BA fuse that failed to eject."]
[17,157,"2024-06-03","18:38:31",-37.808289000000002,145.331907,"15A Bretby Way, Montrose VIC 3765, Australia",1005218,"CYN21","Low voltage AC (<1kV)","URBAN"," - connection box","single phase","Started in or originated from a distribution system","LBRA only",0.2,"No rating",0.05,1.0000000000000002E-2,"E0103948","20240612SPN_01","Crew arrived on site and found a pole mounted FOLCB and U/G cable had caught fire."]
[17,158,"2024-06-12","12:06:30",-38.310949999999998,146.424431,"1A McDonald Way, Churchill VIC 3842, Australia",2614507,"MWL24","22kV AC","RURAL SHORT"," - fuse (boric acid)","three phase","Started in or originated from a distribution system","LBRA only",0.2,"No rating",0.05,1.0000000000000002E-2,"E0103962","20240612SPN_02","Crew arrived and found a candled fuse that failed to eject."]
[17,159,"2024-06-18","11:55:32",-37.414323000000003,144.971825,"13 Hadley Dr, Wallan VIC 3756, Australia",5810929,"KLO24","Low voltage AC (<1kV)","RURAL SHORT"," - LV pillar","three phase","Started in or originated from a distribution system","LBRA only",0.2,"No rating",0.05,1.0000000000000002E-2,"E0104031","20240619SPN_01","A LV pillar has caught fire causing a 1 meter square ground fire. Protection did not operate."]
[17,160,"2024-06-20","05:14:52",-38.070205000000001,146.81195299999999,"741 Denison Rd, Nambrok VIC 3847, Australia",2508919,"MFA34","22kV AC","RURAL SHORT"," - fuse (boric acid)","single phase","Started in or originated from a distribution system","LBRA only",0.2,"No rating",0.05,1.0000000000000002E-2,"E0104064","20240621SPN_01","A BA fuse failed to eject and candled. No ground fire."]
[{"$f":"COUNTA(C198:O198,Q198,T198:V198)","v":17},161,"2024-06-30","19:42:37",-38.194434999999999,146.496082,"55 Freemans Rd, Traralgon VIC 3844, Australia",2606836,"TGN11","Low voltage AC (<1kV)","RURAL SHORT"," - connection box","three phase","Started in or originated from a distribution system","HBRA only",1,"No rating",0.05,0.05,"E0104182","20240701SPN_01","Crew arrived and found a FOLCB had caught fire. CFA extinguished the fire."]

{"sheet":"3. Systems and Audit","index":4,"n_rows":29,"n_cols":5,"rows_kept":29,"cut":false,"hidden":false,"merged":[[28,1,29,4],[3,5,3,6],[4,5,4,6],[5,5,5,6],[6,1,6,4],[9,1,9,4],[14,1,14,4],[10,1,10,4],[13,1,13,4],[12,1,12,4],[11,1,11,4]]}
[null,{"$f":"IF(Cover!D27=\"\",\"[DNSP Name]\", Cover!D27)","v":"AusNet Services"}]
[null,"F-factor data reporting"]
[null,{"$f":"IF(Cover!D33=\"\",\"[Year]\",Cover!D33)","v":"2023/24"}]
[]
[]
[null,"Instructions:"]
[]
[null,{"$f":"IF(Cover!D27=\"\",\"[DNSP Name] must provide:\", CONCATENATE(Cover!D27,\" must provide:\"))","v":"AusNet Services must provide:"}]
[]
[null,"Table 4 - Information or reporting systems"]
[null,"   (1) Name of any IT system used to collect fire start data or fault event data - i.e. SCADA system, or fault reporting system"]
[null,"   (2) Whether the fire recording or fault recording process has been audited or complies with a relevant Australian or industry standard - Yes or No"]
[null,"   (3) List any relevant Australian or industry standards that the fire recording or fault recording process complies with"]
[null,"   (4) Whether the data entered into or removed from the IT system has been audited - Yes or No"]
[]
[]
[null,"Table 4: Information or reporting systems"]
[]
[null,"Information or reporting systems","Name","System Audited","Relevant Standards"]
[null,"System 1","Poweron (OMS)","Yes","ISO 9001 , ISO55000 ,\nElectricity Safey (Bushfire Mitigation) Regulations\nElectricity Safety (Management) Regulations"]
[null,"System 2","ENABLON","Yes","ISO 9001 , ISO55000 ,\nElectricity Safey (Bushfire Mitigation) Regulations\nElectricity Safety (Management) Regulations"]
[null,"System 3 ","Smallworld GIS (SDME) /SAP","Yes","ISO 9001 , ISO55000 ,\nElectricity Safey (Bushfire Mitigation) Regulations\nElectricity Safety (Management) Regulations"]
[null,"System 4","EM-COP","Unknown","https://files-em.em.vic.gov.au/FDRhistory/FDRhistory.htm"]
[null,"System 5"]
[null,"System 6"]
[null,"System 7"]
[null,"System 8"]
[]
[null,"The SGSPAA Internal Audit function undertakes a programme of work in accordance with the SGSPAA Group Internal Audit Plan. This internal audit activity covers elements of the systems and process used for capturing, recording and maintaining fire start data."]